Cogmind - Beta 15 @@@ ROGUE MODE // 2025.08.24 @ 11:06:50 Player: C0-2MO Result: Escaped! Performance ------------- Evolutions (9) 4500 Regions Visited (35) 7000 Robots Destroyed (155) 775 Value Destroyed (6091) 6091 Prototype IDs (217) 4340 Alien Tech Used (6) 1200 Bonus (11840) 11840 TOTAL SCORE: 35746 Bonus ------- High Alert Combat Kills 363 Follower Combat Kills 1677 Entered Garrisons 1000 Used RIF Installer 2500 Met Data Miner 300 Used Data Conduit 3000 Win 3000 Cogmind --------- Core Integrity 1403/1600 Matter 140/300 Energy 100/100 System Corruption 0% +Membrane Temperature Cool (2) Movement Flying (40) Location To Epsilon Eridani Parts ------- > --- POWER (3) -------- (None) > --- PROPULSION (10) -- Q-thruster > --- UTILITY (9) ------ Advanced Signal Interpreter Advanced Signal Interpreter Improved Hacking Suite Improved Hacking Suite System Shield Relay Coupler [NC] (15) > --- WEAPON (3) ------- (None) > --- INVENTORY (5) ---- Micro Antimatter Reactor Transdimensional Reconstructor Enhanced Nova Cannon Improved Remote Datajack Peak State ------------ > --- POWER ------------ (None) > --- PROPULSION ------- Nuclear Pulse Array Field Propulsion Array Q-thruster > --- UTILITY ---------- Advanced Sensor Array Advanced Signal Interpreter Advanced Signal Interpreter Improved Hacking Suite Improved Hacking Suite System Shield Relay Coupler [NC] > --- WEAPON ----------- Sigix Broadsword > --- INVENTORY -------- Micro Antimatter Reactor Transdimensional Reconstructor Terrabomb Enhanced Nova Cannon Improved Remote Datajack [Rating: 96] Favorites ----------- Power Light Deuterium Engine Engine Light Deuterium Engine Power Core Light Fission Core Reactor Fusion Reactor Propulsion Light Treads Treads Light Treads Leg Biometal Leg Wheel Compact Wheel Hover Unit Antigrav Array Flight Unit VTOL Module Utility Hacking Suite Device Structural Scanner Storage Medium Storage Unit Processor Improved Signal Interpreter Hackware Hacking Suite Protection Medium Armor Plating Artifact Phase Redirector Weapon Heavy Assault Rifle Energy Gun Improved Medium Laser Energy Cannon Beam Cannon Ballistic Gun Heavy Assault Rifle Ballistic Cannon Hardcell Cannon Launcher Mini Grenade Launcher Special Weapon Improved Remote Datajack Slashing Weapon Katana Piercing Weapon Kinetic Spear Special Melee Weapon Improved Datajack Build | -11 -10 -9 -9 -8 -7 -7 -7 -7 -7 -7 -6 -6 -6 -6 -6 -6 -5 -5 -5 -5 -5 -5 -5 -4 -4 -4 -4 -4 -4 -3 -3 -2 -2 -2 -1 ------- Run | Yrd Mat Mat Min Mat Fac Was Fac Gar Fac Gar Fac Was Fac Low Low Dat Pro Fac Was Fac Gar Fac Gar Fac Gar Fac Upp Upp Zhi Pro Res Res Qua Sec Acc Slots Evolved 18 | . . 2 . 2 2 . . . . . 2 . . . . . . 2 . . . . . 2 . . . . . . 2 2 . . 2 Power 2 | . . . . . . . . . . . . . . . . . . . . . . . . 1 . . . . . . . . . . 1 Propulsion 8 | . . 1 . 1 1 . . . . . 1 . . . . . . 1 . . . . . 1 . . . . . . 1 1 . . . Utility 7 | . . 1 . 1 1 . . . . . 1 . . . . . . 1 . . . . . . . . . . . . 1 1 . . . Weapon 1 | . . . . . . . . . . . . . . . . . . . . . . . . . . . . . . . . . . . 1 Parts Attached 169 | 7 8 33 3 15 12 . 1 3 1 . 8 . 6 . 3 1 1 8 7 1 9 3 5 1 2 1 2 2 4 . 6 9 4 . 3 Power 21 | 1 . 4 . 2 2 . . 1 . . 2 . . . . . . 2 2 . . . 2 . . . . . . . 2 1 . . . Engine 13 | 1 . 3 . 2 2 . . 1 . . 1 . . . . . . 1 . . . . 2 . . . . . . . . . . . . Core 4 | . . 1 . . . . . . . . 1 . . . . . . 1 1 . . . . . . . . . . . . . . . . Reactor 4 | . . . . . . . . . . . . . . . . . . . 1 . . . . . . . . . . . 2 1 . . . Propulsion 66 | 2 2 9 . 5 6 . 1 2 1 . 4 . . . 2 . 1 4 4 1 6 . 3 1 2 . 1 . 1 . 3 2 2 . 1 Treads 15 | 1 . 9 . 5 . . . . . . . . . . . . . . . . . . . . . . . . . . . . . . . Leg 1 | . . . . . . . . . . . . . . . . . . . . . . . . . . . . . 1 . . . . . . Wheel 3 | 1 2 . . . . . . . . . . . . . . . . . . . . . . . . . . . . . . . . . . Hover 3 | . . . . . . . . . . . . . . . . . . . . . . . . . . . . . . . 1 2 . . . Flight 44 | . . . . . 6 . 1 2 1 . 4 . . . 2 . 1 4 4 1 6 . 3 1 2 . 1 . . . 2 . 2 . 1 Utility 48 | 1 3 8 1 3 4 . . . . . 2 . 5 . 1 1 . 1 . . 2 3 . . . 1 1 1 2 . . 5 1 . 2 Device 20 | 1 . 1 1 . 2 . . . . . 1 . 3 . 1 . . 1 . . 1 1 . . . . 1 1 1 . . 3 . . 1 Storage 3 | . 1 1 . . 1 . . . . . . . . . . . . . . . . . . . . . . . . . . . . . . Processor 6 | . 1 . . 1 . . . . . . . . 1 . . 1 . . . . . 1 . . . . . . . . . 1 . . . Hackware 8 | . . 1 . 1 1 . . . . . 1 . . . . . . . . . . 1 . . . 1 . . 1 . . . . . 1 Protection 10 | . 1 5 . 1 . . . . . . . . 1 . . . . . . . 1 . . . . . . . . . . 1 . . . Artifact 1 | . . . . . . . . . . . . . . . . . . . . . . . . . . . . . . . . . 1 . . Weapon 34 | 3 3 12 2 5 . . . . . . . . 1 . . . . 1 1 . 1 . . . . . . 1 1 . 1 1 1 . . Energy Gun 5 | 1 . 3 . . . . . . . . . . . . . . . . 1 . . . . . . . . . . . . . . . . Energy Cannon 6 | . 3 . . 1 . . . . . . . . . . . . . . . . . . . . . . . . . . 1 1 . . . Ballistic Gun 12 | 2 . 7 1 2 . . . . . . . . . . . . . . . . . . . . . . . . . . . . . . . Ballistic Cannon 1 | . . . . . . . . . . . . . . . . . . . . . . . . . . . . . 1 . . . . . . Launcher 4 | . . 1 1 2 . . . . . . . . . . . . . . . . . . . . . . . . . . . . . . . Special Weapon 1 | . . . . . . . . . . . . . . . . . . . . . . . . . . . . 1 . . . . . . . Impact Weapon . | . . . . . . . . . . . . . . . . . . . . . . . . . . . . . . . . . . . . Slashing Weapon 3 | . . 1 . . . . . . . . . . 1 . . . . . . . . . . . . . . . . . . . 1 . . Piercing Weapon 1 | . . . . . . . . . . . . . . . . . . 1 . . . . . . . . . . . . . . . . . Special Melee Weapon 1 | . . . . . . . . . . . . . . . . . . . . . 1 . . . . . . . . . . . . . . Unidentified Prototypes 13 | . . 3 1 1 . . . . . . . . 2 . . . . . . . . . . . . . . . 1 . . . 2 2 1 Corrupted Parts 1 | . . . . . . . . . . . . . . . . . . . . . . . . . . . . . . . 1 . . . . System Corruption 10 | . . . . . . . . . . . . . . . . . . . . . . . . . . . . . . . 10 . . . . Parts Lost 83 | . 3 15 . 5 1 . . . . 1 1 . 4 . . . 4 4 . . 3 . 4 2 3 8 8 . . . 3 10 . . 4 Power 13 | . 1 2 . 1 . . . . . 1 1 . . . . . 1 . . . . . 1 . 1 1 1 . . . 2 . . . . Propulsion 38 | . 1 4 . 2 . . . . . . . . 3 . . . 3 3 . . 1 . 3 2 1 5 3 . . . . 5 . . 2 Utility 23 | . . 5 . 1 1 . . . . . . . 1 . . . . 1 . . 2 . . . 1 2 2 . . . 1 5 . . 1 Weapon 9 | . 1 4 . 1 . . . . . . . . . . . . . . . . . . . . . . 2 . . . . . . . 1 Highest Loss Streak 10 | . 2 6 . 2 1 . . . . 1 1 . 1 . . . 4 3 . . 3 . 3 1 3 8 7 . . . 3 10 . . 4 To Critical Strikes . | . . . . . . . . . . . . . . . . . . . . . . . . . . . . . . . . . . . . Average Backups 11 | 2 8 14 19 17 10 10 10 10 10 9 8 9 9 9 10 9 9 10 9 10 9 10 10 10 7 6 7 4 4 4 4 4 5 4 4 Power . | . 1 1 1 1 . . . . . . . . . . . . . . . 1 1 1 1 1 . . 1 1 1 1 . . 1 1 1 Propulsion 2 | 1 2 2 5 3 2 2 2 2 2 2 1 2 1 . . 1 1 1 2 3 3 4 4 3 1 . . . . . . . . . . Utility 5 | . 3 5 6 6 6 7 7 7 7 7 6 6 6 7 7 6 6 6 5 5 4 4 4 4 4 3 3 1 1 1 1 . . . . Weapon 2 | . 1 4 5 4 1 1 1 1 1 . . . . . 1 1 1 2 . . . . . . . 1 1 1 . . . 1 1 . . Tool/Special . | . . . . . . . . . . . . . . . . . . . . . . . . . . . . . . . . . . . . Unused Backups 22 | . 1 . 1 2 5 . . 4 . . . . 1 . . . . . 2 . . 1 1 . . . 1 . 1 . . . 1 . 1 Power 5 | . . . . 1 . . . . . . . . . . . . . . 1 . . . . . . . 1 . 1 . . . 1 . . Propulsion 5 | . 1 . . . 2 . . 2 . . . . . . . . . . . . . . . . . . . . . . . . . . . Utility 9 | . . . 1 1 2 . . 2 . . . . 1 . . . . . . . . 1 1 . . . . . . . . . . . . Weapon 1 | . . . . . . . . . . . . . . . . . . . 1 . . . . . . . . . . . . . . . . Tool/Special 2 | . . . . . 1 . . . . . . . . . . . . . . . . . . . . . . . . . . . . . 1 Average Slot Usage (%) 86 | . 89 96 100 98 87 92 92 92 92 95 99 100 93 89 89 93 87 66 91 100 94 94 93 85 83 86 45 19 28 36 37 51 30 34 35 Engine 5 | . 6 7 11 8 6 7 7 7 7 7 5 . . . . . . . . . . . 2 5 3 4 1 . . . . . . . . Core 1 | . . 2 . . . . . . . . . 6 6 6 6 6 4 2 4 5 5 5 2 . . . . . . . . . . . . Treads 13 | . 2 28 33 35 6 . . . . . . . . . . . . . . . . . . . . . . . . . . . . . . Wheel 3 | . 25 3 . . . . . . . . . . . . . . . . . . . . . . . . . . . . . . . . . Flight 14 | . . . . . 29 38 38 38 38 38 39 40 35 33 36 40 35 23 36 41 37 35 34 32 32 32 8 . . . . 6 3 8 8 Device 7 | . 6 8 11 9 6 7 7 1 6 2 11 6 10 13 13 9 13 9 11 11 6 5 2 7 3 6 1 3 6 10 8 11 . . 1 Storage 7 | . 11 11 11 9 5 7 7 7 7 7 6 6 6 6 6 6 6 5 5 5 5 5 5 5 5 5 4 . . . . . . . . Processor 3 | . . . . 4 7 7 7 7 7 7 6 6 6 6 6 7 6 5 5 5 5 5 5 5 5 5 5 5 5 5 4 7 8 8 8 Hackware 8 | . . 1 . 8 12 15 15 15 15 15 13 13 13 13 13 13 13 11 11 11 11 14 17 15 15 17 15 10 11 15 14 13 13 13 14 Protection 5 | . 7 10 11 3 . . . 5 . 4 . 6 . . . 2 . . 2 5 7 7 8 2 5 . 1 . . . . . . . . Energy Cannon 2 | . 18 . . 1 . . . . . . . . . . . . . . . . . . . . . . . . . . . . . . . Ballistic Gun 6 | . 7 14 21 11 1 . . . . . . . . . . . . . . . . . . . . . . . . . . . . . . Slashing Weapon 2 | . . 2 . 4 6 7 7 7 7 7 6 6 6 6 6 6 6 . . . . . . . . . . . . . . . 1 4 3 Peak Build Rating 96 | 6 8 18 25 35 38 34 36 36 36 39 53 52 55 50 53 52 52 42 61 63 81 81 87 85 89 86 58 25 47 49 66 94 82 80 96 Average Rating 33 | 4 7 15 18 28 32 34 35 36 36 37 48 52 51 49 50 51 47 38 52 61 71 79 81 79 82 80 50 19 31 43 55 75 59 78 77 On Entrance 45 | . 6 7 18 20 33 34 34 36 36 36 36 52 52 50 49 52 51 36 42 59 63 81 80 83 74 80 57 14 20 43 43 60 32 80 80 Naked Turns . | . . . . . . . . . . . . . . . . . . . . . . . . . . . . . . . . . . . . Heaviest Build 95 | 9 90 95 63 65 55 18 18 19 19 20 24 23 24 23 22 23 23 19 29 24 27 25 29 24 26 29 16 5 3 4 20 8 10 13 11 Greatest Support 80 | 20 32 63 60 80 80 23 25 25 25 25 33 33 33 27 32 32 32 22 34 26 42 42 42 48 32 43 23 3 3 3 26 48 28 28 36 Greatest Overweight (x) 8 | . 8 3 1 . 1 . . . . . . . . . . . . 1 1 . . . . . . . 4 1 . 1 . . . . . Average Overweight (x) . | . 1 . 1 . . . . . . . . . . . . . . . . . . . . . . . . . . . . . . . . Largest Inventory Capacity 25 | 5 25 25 20 20 20 10 10 10 10 10 10 10 10 10 10 10 10 10 10 10 10 10 10 10 10 10 10 5 5 5 5 5 5 5 5 Average Capacity 14 | 5 22 20 20 20 10 10 10 10 10 10 10 10 10 10 10 10 10 10 10 10 10 10 10 10 10 10 9 5 5 5 5 5 5 5 5 Most Carried 20 | 4 11 20 20 20 20 10 10 10 10 10 10 9 10 10 10 10 10 10 10 10 10 10 10 10 10 8 8 5 5 5 5 5 5 5 5 Average Carried 11 | 2 8 14 19 18 10 10 10 9 10 9 8 9 9 9 9 9 9 9 9 10 9 10 9 9 7 5 7 4 4 4 4 4 4 4 4 Final Capacity 25 | 5 25 20 20 20 10 10 10 10 10 10 10 10 10 10 10 10 10 10 10 10 10 10 10 10 10 10 5 5 5 5 5 5 5 5 5 Final Carried 20 | 4 8 20 20 20 10 10 10 10 10 10 9 9 8 10 10 9 10 10 10 10 10 10 10 10 6 8 5 5 5 5 4 5 5 5 4 Class Distribution -------------------- 36% | Scavenger-Mutant 20% | Scavenger-Sprinter 16% | Mutant 9% | Hacker-Mutant 5% | Scavenger-Scout 5% | Hacker-Scout 4% | Hacker-Sprinter Dominant Class ---------------- Mutant | -10/Materials Scavenger-Mutant | -9/Materials Scavenger-Mutant | -9/Mines Scavenger-Mutant | -8/Materials Scavenger-Sprinter | -7/Factory Scavenger-Sprinter | -7/Waste Hacker-Sprinter | -7/Factory Scavenger-Sprinter | -7/Garrison Scavenger-Sprinter | -7/Factory Scavenger-Sprinter | -7/Garrison Scavenger-Scout | -6/Factory Scavenger-Scout | -6/Waste Hacker-Sprinter | -6/Factory Hacker-Scout | -6/Lower Caves Hacker-Scout | -6/Lower Caves Hacker-Sprinter | -6/Data Miner Hacker-Scout | -5/Proximity Caves Scavenger-Sprinter | -5/Factory Scavenger-Assassin | -5/Waste Scavenger-Scout | -5/Factory Scavenger-Sprinter | -5/Garrison Hacker-Sprinter | -5/Factory Scavenger-Sprinter | -5/Garrison Scavenger-Scout | -4/Factory Scavenger-Sprinter | -4/Garrison Hacker-Sprinter | -4/Factory Hacker-Mutant | -4/Upper Caves Mutant | -4/Upper Caves Hacker-Mutant | -4/Zhirov Hacker-Mutant | -3/Proximity Caves Hacker-Mutant | -3/Research Hacker-Mutant | -2/Research Hacker-Mutant | -2/Quarantine Hacker-Mutant | -2/Section 7 Hacker-Mutant | -1/Access Resources | -11 -10 -9 -9 -8 -7 -7 -7 -7 -7 -7 -6 -6 -6 -6 -6 -6 -5 -5 -5 -5 -5 -5 -5 -4 -4 -4 -4 -4 -4 -3 -3 -2 -2 -2 -1 ----------- Run | Yrd Mat Mat Min Mat Fac Was Fac Gar Fac Gar Fac Was Fac Low Low Dat Pro Fac Was Fac Gar Fac Gar Fac Gar Fac Upp Upp Zhi Pro Res Res Qua Sec Acc Matter Collected 4231 | 288 270 991 192 648 256 20 10 40 10 97 20 . 25 34 243 . 43 82 110 56 179 . 118 . . 14 54 165 114 . 70 5 76 1 . Remotely . | . . . . . . . . . . . . . . . . . . . . . . . . . . . . . . . . . . . . Salvage Created 4974 | 113 413 1374 174 946 275 . . 125 50 204 20 . 25 . 117 . 116 181 . 92 207 . 202 . . . . . 270 . 70 . . . . Parts 340 | 8 33 96 18 54 22 . . 6 5 16 4 . 3 . 4 . 9 15 . 10 11 . 13 . . . . . 8 . 5 . . . . Haulers Intercepted 3 | . . 2 . . . . . . . . . . . . . . . 1 . . . . . . . . . . . . . . . . . Recyclers Shooed 2 | 1 . . . 1 . . . . . . . . . . . . . . . . . . . . . . . . . . . . . . . Parts Field Recycled . | . . . . . . . . . . . . . . . . . . . . . . . . . . . . . . . . . . . . Retrieved Matter . | . . . . . . . . . . . . . . . . . . . . . . . . . . . . . . . . . . . . Parts Self-Destructed 14 | . . . . . . . . . . . . . . . 4 . 4 . . . . . . . . . 1 . 5 . . . . . . Prevented . | . . . . . . . . . . . . . . . . . . . . . . . . . . . . . . . . . . . . Kills | -11 -10 -9 -9 -8 -7 -7 -7 -7 -7 -7 -6 -6 -6 -6 -6 -6 -5 -5 -5 -5 -5 -5 -5 -4 -4 -4 -4 -4 -4 -3 -3 -2 -2 -2 -1 ------- Run | Yrd Mat Mat Min Mat Fac Was Fac Gar Fac Gar Fac Was Fac Low Low Dat Pro Fac Was Fac Gar Fac Gar Fac Gar Fac Upp Upp Zhi Pro Res Res Qua Sec Acc Combat Hostiles Destroyed 114 | . 15 26 7 23 4 . . 2 . 10 . . . . 2 . 5 3 . 4 5 . 6 . . . . . . . 2 . . . . Melee 14 | . . . . . . . . 2 . 1 . . . . 2 . 1 3 . . 2 . 3 . . . . . . . . . . . . Guns 41 | . 3 23 2 12 1 . . . . . . . . . . . . . . . . . . . . . . . . . . . . . . Cannons 16 | . 12 1 . 1 . . . . . . . . . . . . . . . . . . . . . . . . . . 2 . . . . AOE 43 | . . 2 5 10 3 . . . . 9 . . . . . . 4 . . 4 3 . 3 . . . . . . . . . . . . Classes Destroyed 15 | 2 5 4 . 1 . . . 2 . . . . . . . . . . . . . . . . . . . . . . 1 . . . . Worker 6 | . 1 1 1 1 1 . . . . . . . . . . . . . . 1 . . . . . . . . . . . . . . . Builder 6 | . . . . 3 2 . . . . . . . . . . . . 1 . . . . . . . . . . . . . . . . . Tunneler 2 | 1 . . 1 . . . . . . . . . . . . . . . . . . . . . . . . . . . . . . . . Hauler 3 | . . 2 . . . . . . . . . . . . . . . 1 . . . . . . . . . . . . . . . . . Recycler 5 | 1 1 . . 1 2 . . . . . . . . . . . . . . . . . . . . . . . . . . . . . . Mechanic 2 | . . 1 . . . . . . . . . . 1 . . . . . . . . . . . . . . . . . . . . . . Operator 7 | . 1 1 . 1 1 . . . 2 . 1 . . . . . . . . . . . . . . . . . . . . . . . . Watcher 10 | . 2 4 . 2 . . . 1 . . . . . . . . . . . . . . 1 . . . . . . . . . . . . Swarmer 46 | . 12 1 4 4 4 . . . . 4 . . . . . . 4 3 . 4 2 . 4 . . . . . . . . . . . . Cutter 2 | . . . . . . . . . . . . . . . . . . . . . . . . . . . . . . . 2 . . . . Grunt 42 | . 3 14 2 14 . . . . . 5 . . . . 2 . . . . . . . 2 . . . . . . . . . . . . Duelist 1 | . . 1 . . . . . . . . . . . . . . . . . . . . . . . . . . . . . . . . . Sentry 18 | . . 10 1 5 . . . . . . . . . . . . 1 . . . 1 . . . . . . . . . . . . . . Hunter 4 | . . . . . . . . 1 . 1 . . . . . . . . . . 2 . . . . . . . . . . . . . . Programmer 1 | . . . . . . . . 1 . . . . . . . . . . . . . . . . . . . . . . . . . . . Best Kill Streak 9 | 2 6 4 4 9 5 . . 1 1 6 1 . 1 . 2 . 4 3 . 4 3 . 6 . . . . . . . 2 . . . . Combat Bots Only 6 | . 5 3 4 6 4 . . 1 . 6 . . . . 2 . 4 3 . 4 3 . 5 . . . . . . . 2 . . . . Max Kills in Single Turn 4 | 1 1 2 4 4 3 . . 1 1 4 1 . 1 . 1 . 2 1 . 4 1 . 1 . . . . . . . 1 . . . . Gunslinging . | . . . . . . . . . . . . . . . . . . . . . . . . . . . . . . . . . . . . Exploded 4 | . . 2 4 3 3 . . . . 4 . . . . . . 2 . . 4 1 . 1 . . . . . . . . . . . . Melee 1 | . . . . . . . . 1 . 1 . . . . 1 . 1 1 . . 1 . 1 . . . . . . . . . . . . Uniques/NPCs Destroyed . | . . . . . . . . . . . . . . . . . . . . . . . . . . . . . . . . . . . . Combat | -11 -10 -9 -9 -8 -7 -7 -7 -7 -7 -7 -6 -6 -6 -6 -6 -6 -5 -5 -5 -5 -5 -5 -5 -4 -4 -4 -4 -4 -4 -3 -3 -2 -2 -2 -1 -------- Run | Yrd Mat Mat Min Mat Fac Was Fac Gar Fac Gar Fac Was Fac Low Low Dat Pro Fac Was Fac Gar Fac Gar Fac Gar Fac Upp Upp Zhi Pro Res Res Qua Sec Acc Hostile Shots Fired 1089 | . 68 195 20 109 31 . . 6 9 33 35 . 21 . 3 5 10 24 . 3 25 4 38 20 2 70 105 4 . . 62 86 17 12 72 Missed 463 | . 15 45 10 38 12 . . 6 6 20 26 . 9 . 1 3 5 8 . 2 12 3 13 11 2 44 53 3 . . 29 38 8 9 32 Hits 626 | . 53 150 10 71 19 . . . 3 13 9 . 12 . 2 2 5 16 . 1 13 1 25 9 . 26 52 1 . . 33 48 9 3 40 Melee 18 | . . 1 . . . . . . . . . . . . . . . . . . 2 . . . . . . . . . 15 . . . . Projectile 608 | . 53 149 10 71 19 . . . 3 13 9 . 12 . 2 2 5 16 . 1 11 1 25 9 . 26 52 1 . . 18 48 9 3 40 AOE 2 | . . . . . . . . . . . 2 . . . . . . . . . . . . . . . . . . . . . . . . Critical Strikes 29 | . . 6 2 2 1 . . . . 1 . . . . . . . . . . 2 . . . . . . . . . 11 2 . . 2 Actively Blocked 12 | . . . . . . . . . . . . . . . . . . . . . . . . . . . . . . . 11 1 . . . Part Disruptions 2 | . . . . . . . . . . . . . . . . . . . . . . . . . . 1 1 . . . . . . . . Damage Taken 11029 | . 568 2039 180 1121 308 . . 10 27 194 230 . 213 . 28 94 126 252 . 94 318 20 423 176 304 445 900 19 . . 801 946 154 78 961 Core 2550 | . 171 292 20 120 58 . . . 17 47 119 . 71 . 14 . . 76 . 44 92 . 103 74 . 123 341 19 . . 274 229 49 . 197 Absorbed by Shields 55 | . . . . . . . . . . . . . . . . . . . . . . . 55 . . . . . . . . . . . . Redirected to Shielding 570 | . 18 2 . . 34 . . . . 51 . . . . . 61 . . . 16 51 . 52 11 104 . . . . . . 170 . . . Ignored by Resistances 236 | . . . . . . . . . . . . . . . . . . . . . . . . . . . . . . . . 236 . . . Regen/Repaired (Parts) 816 | . . . . 107 . . . . . . . . 103 . . . . 21 61 41 32 . . 61 . 17 . . . . . 87 44 34 208 Core Remaining (%) 68 | 100 31 . 22 78 . . . . . 82 . . . . . . 76 . . . . . 68 . . . . . . 51 78 . . 80 87 Volleys Fired 298 | 9 50 107 13 57 7 . . . . 11 . . . . . . 3 . 3 4 5 . 6 . 4 . . 3 . . 6 4 2 1 3 Largest 2 | 2 2 2 2 2 2 . . . . 1 . . . . . . 1 . 1 1 1 . 1 . 1 . . 1 . . 1 1 1 1 1 Hottest 120 | 40 120 120 56 93 56 . . . . 30 . . . . . . 30 . 30 30 30 . 30 . 30 . . 7 . . 94 120 7 120 120 Shots Fired 521 | 18 82 212 25 114 14 . . . . 11 . . 1 . . . 3 . 3 4 5 . 6 . 4 . . 3 . . 6 4 2 1 3 Gun 372 | 18 26 206 23 86 13 . . . . . . . . . . . . . . . . . . . . . . . . . . . . . . Cannon 90 | . 56 4 . 16 . . . . . . . . . . . . . . . . . . . . . . . . . . 6 4 . 1 3 Launcher 54 | . . 2 2 12 1 . . . . 11 . . 1 . . . 3 . 3 4 5 . 6 . 4 . . . . . . . . . . Special 5 | . . . . . . . . . . . . . . . . . . . . . . . . . . . . 3 . . . . 2 . . Kinetic 339 | 18 26 173 23 86 13 . . . . . . . . . . . . . . . . . . . . . . . . . . . . . . Thermal 116 | . 56 37 . 16 . . . . . . . . . . . . . . . . . . . . . . . . . . . 3 . 1 3 Explosive 54 | . . 2 2 12 1 . . . . 11 . . 1 . . . 3 . 3 4 5 . 6 . 4 . . . . . . . . . . Electromagnetic 7 | . . . . . . . . . . . . . . . . . . . . . . . . . . . . . . . 6 1 . . . Robot Hit Streak 17 | 5 4 17 6 10 2 . . . . 3 . . . . . . 2 . 3 1 3 . 4 . . . . 5 . . 7 . 2 . . Robot Miss Streak 3 | 1 2 3 2 3 3 . . . . 2 . . . . . . 2 . 2 . 1 . 2 . . . . . . . 1 2 . . . Penetration Max . | . . . . . . . . . . . . . . . . . . . . . . . . . . . . . . . . . . . . Secondary Targets 4 | . . 3 . 1 . . . . . . . . . . . . . . . . . . . . . . . . . . . . . . . Max Gunslinging Chain 1 | . . 1 . 1 . . . . . . . . . . . . . . . . . . . . . . . . . . . . . . . Shots Hit Robots 422 | 13 48 154 18 83 14 . . 4 4 6 5 . 1 . 5 1 8 6 1 4 11 . 18 . . 1 . 3 7 . 5 . 2 . . Core Hits 232 | 5 22 56 11 58 11 . . 3 2 15 1 . 1 . 2 . 10 4 1 4 11 . 11 . . . . . 3 . 1 . . . . Critical Kills . | . . . . . . . . . . . . . . . . . . . . . . . . . . . . . . . . . . . . Critical Parts Destroyed 1 | . . . . 1 . . . . . . . . . . . . . . . . . . . . . . . . . . . . . . . Critical Strikes 11 | . . 3 . 1 . . . 1 . . . . . . 1 . 1 1 . 2 1 . . . . . . . . . . . . . . Burn 2 | . . 2 . . . . . . . . . . . . . . . . . . . . . . . . . . . . . . . . . Destroy 1 | . . . . 1 . . . . . . . . . . . . . . . . . . . . . . . . . . . . . . . Sever 4 | . . 1 . . . . . 1 . . . . . . 1 . 1 . . . . . . . . . . . . . . . . . . Impale 4 | . . . . . . . . . . . . . . . . . . 1 . 2 1 . . . . . . . . . . . . . . Melee Attacks 355 | . . 13 . 22 14 . . 35 14 38 12 . 13 . 7 5 6 20 . 5 25 9 27 23 6 20 9 . 7 2 5 4 4 4 6 Impact . | . . . . . . . . . . . . . . . . . . . . . . . . . . . . . . . . . . . . Slashing 191 | . . 13 . 22 14 . . 35 14 38 12 . 13 . 7 5 6 1 . . . . . . . . . . . . . . 1 4 6 Piercing 149 | . . . . . . . . . . . . . . . . . . 19 . 5 22 9 18 23 6 17 9 . 7 2 5 4 3 . . Sneak Attacks 39 | . . 1 . 2 5 . . 2 2 . . . 1 . 4 1 4 2 . 2 3 . 9 . . 1 . . . . . . . . . Combat Hostiles 10 | . . . . . . . . 1 . . . . . . 4 . 4 . . 1 . . . . . . . . . . . . . . . Follow-up Attacks . | . . . . . . . . . . . . . . . . . . . . . . . . . . . . . . . . . . . . Damage Inflicted 13982 | 104 739 2764 571 3007 846 . . 212 257 835 199 . 100 . 364 91 776 358 418 381 499 . 631 . . . . . 622 . 208 . . . . Guns 4082 | 104 89 2311 277 1207 94 . . . . . . . . . . . . . . . . . . . . . . . . . . . . . . Cannons 1122 | . 647 71 . 216 . . . . . . . . . . . . . . . . . . . . . . . . . . 188 . . . . Explosions 4413 | . . 211 258 1392 219 . . . . 799 . . . . . . 277 . 418 194 274 . 371 . . . . . . . . . . . . Melee 4269 | . . 134 . 192 533 . . 212 257 36 199 . 100 . 364 91 499 358 . 187 225 . 260 . . . . . 622 . . . . . . Ramming 96 | . 3 37 36 . . . . . . . . . . . . . . . . . . . . . . . . . . . 20 . . . . Kinetic 3641 | 104 89 1870 277 1207 94 . . . . . . . . . . . . . . . . . . . . . . . . . . . . . . Thermal 1375 | . 647 512 . 216 . . . . . . . . . . . . . . . . . . . . . . . . . . . . . . . Explosive 4413 | . . 211 258 1392 219 . . . . 799 . . . . . . 277 . 418 194 274 . 371 . . . . . . . . . . . . Electromagnetic 188 | . . . . . . . . . . . . . . . . . . . . . . . . . . . . . . . 188 . . . . Impact . | . . . . . . . . . . . . . . . . . . . . . . . . . . . . . . . . . . . . Slashing 2713 | . . 134 . 192 533 . . 212 257 36 199 . 100 . 364 91 499 96 . . . . . . . . . . . . . . . . . Piercing 1556 | . . . . . . . . . . . . . . . . . . 262 . 187 225 . 260 . . . . . 622 . . . . . . Highest Corruption 13 | . . . . . . . . . . . . . 1 1 1 . . . . . . . 1 1 7 7 7 7 7 7 13 1 1 1 . Average Corruption 4 | . . . . . . . . . . . . . 1 1 1 . . . . . . . 1 1 3 7 7 7 7 7 5 1 1 1 . Corruption Purged 1 | . . . . . . . . . . . . . . . 1 . . . . . . . . . . . . . . . . . . . . Corruption Blocked . | . . . . . . . . . . . . . . . . . . . . . . . . . . . . . . . . . . . . Effects 37 | . . . . . . . . . . . . . 3 1 1 . . . . . . . . . 1 9 6 4 4 5 3 . . . . Message Errors 10 | . . . . . . . . . . . . . . . . . . . . . . . . . . 4 3 1 1 1 . . . . . Matter Fused 11 | . . . . . . . . . . . . . 1 1 . . . . . . . . . . 1 3 2 2 1 . . . . . . Heat Flow Errors 4 | . . . . . . . . . . . . . . . . . . . . . . . . . . 1 1 . . 1 1 . . . . Energy Discharges 5 | . . . . . . . . . . . . . 1 . . . . . . . . . . . . . . 1 1 2 . . . . . Parts Fused 1 | . . . . . . . . . . . . . . . 1 . . . . . . . . . . . . . . . . . . . . Data Loss (minor) 1 | . . . . . . . . . . . . . . . . . . . . . . . . . . 1 . . . . . . . . . Data Loss (major) 1 | . . . . . . . . . . . . . . . . . . . . . . . . . . . . . . 1 . . . . . Misfires 1 | . . . . . . . . . . . . . 1 . . . . . . . . . . . . . . . . . . . . . . Alerts 1 | . . . . . . . . . . . . . . . . . . . . . . . . . . . . . 1 . . . . . . Misdirections 2 | . . . . . . . . . . . . . . . . . . . . . . . . . . . . . . . 2 . . . . Overload Shots . | . . . . . . . . . . . . . . . . . . . . . . . . . . . . . . . . . . . . Overflow Damage 673 | . . 5 . 41 117 . . . 46 25 . . 7 . 18 . 66 44 . 183 87 . . . . . . . . . 34 . . . . Projectiles 34 | . . . . . . . . . . . . . . . . . . . . . . . . . . . . . . . 34 . . . . Explosions 88 | . . . . 36 . . . . . 25 . . 7 . . . 14 . . . 6 . . . . . . . . . . . . . . Melee 551 | . . 5 . 5 117 . . . 46 . . . . . 18 . 52 44 . 183 81 . . . . . . . . . . . . . . Knockbacks . | . . . . . . . . . . . . . . . . . . . . . . . . . . . . . . . . . . . . Impact . | . . . . . . . . . . . . . . . . . . . . . . . . . . . . . . . . . . . . Kinetic . | . . . . . . . . . . . . . . . . . . . . . . . . . . . . . . . . . . . . Secondary . | . . . . . . . . . . . . . . . . . . . . . . . . . . . . . . . . . . . . Self-Inflicted Damage 311 | . . 57 41 82 . . . . . 1 . . 40 . . . 38 . . . 6 . 37 . . . . . . . 9 . . . . Shots 14 | . . 2 2 4 . . . . . 1 . . 1 . . . 1 . . . 1 . 2 . . . . . . . . . . . . Rammed 11 | . . 5 2 . . . . . . . . . . . . . . . . . . . . . . . . . . . 4 . . . . Targets Rammed 13 | . 1 5 3 . . . . . . . . . . . . . . . . . . . . . . . . . . . 4 . . . . Kicked . | . . . . . . . . . . . . . . . . . . . . . . . . . . . . . . . . . . . . Crushed 2 | . 1 . 1 . . . . . . . . . . . . . . . . . . . . . . . . . . . . . . . . Highest Temperature 348 | . 322 216 36 108 18 3 3 5 11 34 16 89 100 . 112 18 108 . 25 6 56 75 45 94 4 274 348 . . 215 96 60 . 34 . Average Temperature 43 | . 84 41 16 33 2 2 2 3 10 16 7 47 50 . 58 12 51 . 12 2 16 24 17 24 4 63 161 . . 129 62 24 . 26 . Received Heat Transfer 2229 | . 54 912 108 495 81 . . 6 12 123 42 . 18 . . . . . . . 45 9 18 . . 51 81 . . . 66 54 9 9 36 Siege Activations . | . . . . . . . . . . . . . . . . . . . . . . . . . . . . . . . . . . . . Martial Activations . | . . . . . . . . . . . . . . . . . . . . . . . . . . . . . . . . . . . . Shielding Activations . | . . . . . . . . . . . . . . . . . . . . . . . . . . . . . . . . . . . . Robots Disrupted . | . . . . . . . . . . . . . . . . . . . . . . . . . . . . . . . . . . . . Combat Hostiles . | . . . . . . . . . . . . . . . . . . . . . . . . . . . . . . . . . . . . Robots Corrupted . | . . . . . . . . . . . . . . . . . . . . . . . . . . . . . . . . . . . . Combat Hostiles . | . . . . . . . . . . . . . . . . . . . . . . . . . . . . . . . . . . . . Parts Fried 5 | . . . . . . . . . . . . . . . . . . . . . . . . . . . . . . . 5 . . . . Impact Corruptions . | . . . . . . . . . . . . . . . . . . . . . . . . . . . . . . . . . . . . Robots Melted . | . . . . . . . . . . . . . . . . . . . . . . . . . . . . . . . . . . . . Combat Hostiles . | . . . . . . . . . . . . . . . . . . . . . . . . . . . . . . . . . . . . Parts Melted 4 | . 3 . . 1 . . . . . . . . . . . . . . . . . . . . . . . . . . . . . . . Heat Transferred 3071 | . 1369 1258 . 444 . . . . . . . . . . . . . . . . . . . . . . . . . . . . . . . Parts Sabotaged . | . . . . . . . . . . . . . . . . . . . . . . . . . . . . . . . . . . . . Parts Stolen . | . . . . . . . . . . . . . . . . . . . . . . . . . . . . . . . . . . . . Parts Stripped . | . . . . . . . . . . . . . . . . . . . . . . . . . . . . . . . . . . . . Power Chain Reactions . | . . . . . . . . . . . . . . . . . . . . . . . . . . . . . . . . . . . . Alert | -11 -10 -9 -9 -8 -7 -7 -7 -7 -7 -7 -6 -6 -6 -6 -6 -6 -5 -5 -5 -5 -5 -5 -5 -4 -4 -4 -4 -4 -4 -3 -3 -2 -2 -2 -1 ------- Run | Yrd Mat Mat Min Mat Fac Was Fac Gar Fac Gar Fac Was Fac Low Low Dat Pro Fac Was Fac Gar Fac Gar Fac Gar Fac Upp Upp Zhi Pro Res Res Qua Sec Acc Maximum Alert Level 4 | . . 1 . 1 1 . . 3 2 3 2 1 1 . . . . . . 2 4 2 2 2 2 1 . . . . . . . . 1 Low Security (%) 62 | 100 100 78 100 50 50 100 100 13 . . . . 57 . . . . 100 100 5 . . . . . 75 . . . . 100 100 100 100 98 Level 1 19 | . . 21 . 49 49 . . 24 . . . 100 42 . . . . . . 32 13 . . 35 41 24 . . . . . . . . 1 Level 2 12 | . . . . . . . . 12 100 60 100 . . . . . . . . 62 5 100 100 64 58 . . . . . . . . . . Level 3 4 | . . . . . . . . 49 . 39 . . . . . . . . . . 79 . . . . . . . . . . . . . . Level 4 . | . . . . . . . . . . . . . . . . . . . . . 1 . . . . . . . . . . . . . . Level 5 . | . . . . . . . . . . . . . . . . . . . . . . . . . . . . . . . . . . . . High Security . | . . . . . . . . . . . . . . . . . . . . . . . . . . . . . . . . . . . . Max Security . | . . . . . . . . . . . . . . . . . . . . . . . . . . . . . . . . . . . . Peak Influence 1104 | 5 120 270 166 369 274 41 37 966 681 1042 601 220 236 . . . . 78 27 495 1104 615 662 509 484 244 . . . . 40 68 49 47 223 Initial 549 | . . 4 96 . 153 41 . . 506 441 541 205 154 . . . . 44 27 . 318 549 429 347 329 228 . . . . . 16 16 21 24 Average 206 | . 50 111 44 172 193 14 9 577 588 690 545 212 187 . . . . 34 5 368 897 569 537 438 410 133 . . . . 10 24 19 36 123 Influence Increases 9348 | 10 446 919 213 818 317 . 37 1146 345 751 157 15 218 . 94 . 110 181 28 585 1059 135 353 254 157 238 30 . 15 . 113 153 93 39 319 Destroy 0b10 Robot/C 3380 | . 300 520 140 460 80 . . 400 100 340 . . . . 60 . 100 60 . 160 440 . 120 40 . 20 . . . . 40 . . . . Destroy 0b10 Robot/NC 240 | 10 25 45 10 40 30 . . 5 10 . 5 . 5 . . . . 10 . 25 . . 5 . . . . . 15 . . . . . . Destroy Leader 546 | . 54 182 20 104 10 . . 30 20 30 . . . . . . 10 12 . 34 20 . . 10 . 10 . . . . . . . . . Allied During Kill 1078 | . . . . . . . . 395 30 76 . . . . 4 . . . . 125 433 . 2 10 . 3 . . . . . . . . . Trap Triggered on 0b10 30 | . . . 10 20 . . . . . . . . . . . . . . . . . . . . . . . . . . . . . . . Successful Hack 534 | . 37 31 . 32 44 . 22 . 56 14 40 . 65 . . . . . . 44 . 29 . 52 . 40 . . . . 18 . . . 10 Select Force Hacks 90 | . . 60 . 30 . . . . . . . . . . . . . . . . . . . . . . . . . . . . . . . Disable Machine 390 | . 15 . 15 60 30 . . 15 15 15 . . 30 . . . . . . 45 . 15 15 . . . . . . . . 15 45 30 30 Anti-Garrison Action 350 | . . . . . . . . 150 . 50 . . . . . . . . . . 50 . 50 . 50 . . . . . . . . . . Destroy Structure 1075 | . . 21 18 72 3 . . 106 9 166 7 . 13 . . . . 24 28 122 86 16 86 52 107 30 . . . . 10 18 3 9 69 Partial Spotted 330 | . . . . . . . 15 30 15 . 60 15 45 . . . . 15 . 30 . 15 45 30 . . . . . . . . . . 15 Lose Combat Pursuer 1305 | . 15 60 . . 120 . . 15 90 60 45 . 60 . 30 . . 60 . . 30 60 30 60 . 135 30 . . . 45 120 45 . 195 Influence Decreases 9125 | 10 435 683 460 480 537 118 37 180 680 350 601 383 256 88 109 79 40 173 106 130 467 568 305 445 192 568 136 . 15 . 83 153 84 38 136 Entered New Map 3840 | . . 7 151 . 185 77 . . 460 190 491 383 66 68 19 79 . 26 51 . 137 498 185 315 142 208 40 . . . . 14 14 18 16 Time Decay 3373 | 10 405 546 309 430 342 41 37 . 160 . 100 . 150 20 70 . 20 70 10 90 . 40 . 110 . 100 61 . 15 . 34 53 60 20 70 Lost Part 728 | . 30 130 . 50 10 . . . . 10 10 . 40 . . . 20 37 . . 30 . 40 20 30 80 35 . . . 30 86 . . 40 Lost Ally 1034 | . . . . . . . . 180 60 150 . . . . 20 . . 40 45 40 300 30 80 . 20 30 . . . . 19 . 10 . 10 Purge Threat 150 | . . . . . . . . . . . . . . . . . . . . . . . . . . 150 . . . . . . . . . Squads Dispatched 40 | . 2 5 . 3 3 . . . 2 . 2 . . . . . . 1 . 3 . 2 . 2 . 7 . . . . 1 4 1 1 1 Investigation 17 | . 1 3 . 1 1 . . . . . 1 . . . . . . 1 . 2 . 2 . 1 . 2 . . . . . 2 . . . Extermination 5 | . . . . . 1 . . . . . 1 . . . . . . . . . . . . 1 . 1 . . . . . 1 . . . Reinforcement 15 | . 1 2 . 2 1 . . . 2 . . . . . . . . . . . . . . . . 2 . . . . 1 1 1 1 1 Assault 2 | . . . . . . . . . . . . . . . . . . . . . . . . . . 2 . . . . . . . . . Garrison 1 | . . . . . . . . . . . . . . . . . . . . 1 . . . . . . . . . . . . . . . Intercept . | . . . . . . . . . . . . . . . . . . . . . . . . . . . . . . . . . . . . Searches Triggered . | . . . . . . . . . . . . . . . . . . . . . . . . . . . . . . . . . . . . Construction Impeded 1 | . . . . 1 . . . . . . . . . . . . . . . . . . . . . . . . . . . . . . . Haulers Reinforced 2 | . . . . . . . . . . . . . . . . . . . . . . . . . . 2 . . . . . . . . . Active Scanning Responses . | . . . . . . . . . . . . . . . . . . . . . . . . . . . . . . . . . . . . Cargo Convoy Interrupts . | . . . . . . . . . . . . . . . . . . . . . . . . . . . . . . . . . . . . Stealth | -11 -10 -9 -9 -8 -7 -7 -7 -7 -7 -7 -6 -6 -6 -6 -6 -6 -5 -5 -5 -5 -5 -5 -5 -4 -4 -4 -4 -4 -4 -3 -3 -2 -2 -2 -1 --------- Run | Yrd Mat Mat Min Mat Fac Was Fac Gar Fac Gar Fac Was Fac Low Low Dat Pro Fac Was Fac Gar Fac Gar Fac Gar Fac Upp Upp Zhi Pro Res Res Qua Sec Acc Distress Signals 20 | . 1 3 . 3 1 . . . 2 . . . . . . . . . . 4 . 1 . 1 . . . . . . 1 1 . 1 1 Communications Jammed . | . . . . . . . . . . . . . . . . . . . . . . . . . . . . . . . . . . . . Distress Signals . | . . . . . . . . . . . . . . . . . . . . . . . . . . . . . . . . . . . . Times Spotted 403 | . 21 47 8 36 14 . . 7 14 17 12 1 5 . 3 4 7 7 6 9 22 8 11 13 3 32 30 2 . . 9 19 5 10 21 Peak Tracking Total 17 | . 5 6 4 7 6 . . 2 5 7 8 1 3 . 2 4 4 6 6 4 8 6 5 5 4 17 14 2 . . 8 14 4 10 15 Tactical Retreats 46 | . 1 3 . . 4 . . 1 3 3 2 . 3 . 1 . . 1 . . 1 3 1 3 . 3 4 . . . 2 2 1 . 4 Traps | -11 -10 -9 -9 -8 -7 -7 -7 -7 -7 -7 -6 -6 -6 -6 -6 -6 -5 -5 -5 -5 -5 -5 -5 -4 -4 -4 -4 -4 -4 -3 -3 -2 -2 -2 -1 ------- Run | Yrd Mat Mat Min Mat Fac Was Fac Gar Fac Gar Fac Was Fac Low Low Dat Pro Fac Was Fac Gar Fac Gar Fac Gar Fac Upp Upp Zhi Pro Res Res Qua Sec Acc Traps Triggered 17 | . 5 . . . 2 . . . . . 1 . 1 . . . . 1 . 1 3 1 1 . . . 1 . . . . . . . . Indirectly . | . . . . . . . . . . . . . . . . . . . . . . . . . . . . . . . . . . . . Trap Hack Attempts 9 | . . . . . . . . . . . . . . . . . . . . . 9 . . . . . . . . . . . . . . Triggered . | . . . . . . . . . . . . . . . . . . . . . . . . . . . . . . . . . . . . Disarmed . | . . . . . . . . . . . . . . . . . . . . . . . . . . . . . . . . . . . . Reprogrammed 2 | . . . . . . . . . . . . . . . . . . . . . 2 . . . . . . . . . . . . . . Reused 3 | . . . 1 2 . . . . . . . . . . . . . . . . . . . . . . . . . . . . . . . Traps Extracted . | . . . . . . . . . . . . . . . . . . . . . . . . . . . . . . . . . . . . Installed 3 | . . . 1 2 . . . . . . . . . . . . . . . . . . . . . . . . . . . . . . . Triggered 3 | . . . 1 2 . . . . . . . . . . . . . . . . . . . . . . . . . . . . . . . Most Traps Carried 4 | . . . 4 3 . . . . . . . . . . . . . . . . . . . . . . . . . . . . . . . Machines | -11 -10 -9 -9 -8 -7 -7 -7 -7 -7 -7 -6 -6 -6 -6 -6 -6 -5 -5 -5 -5 -5 -5 -5 -4 -4 -4 -4 -4 -4 -3 -3 -2 -2 -2 -1 ---------- Run | Yrd Mat Mat Min Mat Fac Was Fac Gar Fac Gar Fac Was Fac Low Low Dat Pro Fac Was Fac Gar Fac Gar Fac Gar Fac Upp Upp Zhi Pro Res Res Qua Sec Acc Machines Disabled 35 | . 1 . 1 4 2 . . 5 1 2 . . 2 . . . . . . 3 1 1 2 . 2 . . . . . . 1 3 2 2 Max in Single Turn 2 | . 1 . 1 1 1 . . 1 . 1 . . 1 . . . . . . 1 1 1 1 . 2 . . . . . . 1 1 1 1 Garrison Access 7 | . . . . 1 1 . . . . . . . . . . . . 1 . . . . . 1 . 1 . . . . 1 . . . 1 Garrison Relay 6 | . . . . . . . . 3 . 1 . . . . . . . . . . 1 . 1 . . . . . . . . . . . . Phase Generator 1 | . . . . . . . . . . . . . . . . . . . . . . . . . 1 . . . . . . . . . . Energy Cycler 1 | . . . . . . . . . . . . . . . . . . . . . . . . . . . . . . . . . . . 1 Machines Repaired . | . . . . . . . . . . . . . . . . . . . . . . . . . . . . . . . . . . . . Machines Dismantled . | . . . . . . . . . . . . . . . . . . . . . . . . . . . . . . . . . . . . Machines Sabotaged . | . . . . . . . . . . . . . . . . . . . . . . . . . . . . . . . . . . . . Overloaded Fab Kills . | . . . . . . . . . . . . . . . . . . . . . . . . . . . . . . . . . . . . Hacking | -11 -10 -9 -9 -8 -7 -7 -7 -7 -7 -7 -6 -6 -6 -6 -6 -6 -5 -5 -5 -5 -5 -5 -5 -4 -4 -4 -4 -4 -4 -3 -3 -2 -2 -2 -1 --------- Run | Yrd Mat Mat Min Mat Fac Was Fac Gar Fac Gar Fac Was Fac Low Low Dat Pro Fac Was Fac Gar Fac Gar Fac Gar Fac Upp Upp Zhi Pro Res Res Qua Sec Acc Machines Accessed 126 | . 8 14 . 12 9 . 2 3 9 2 7 . 10 1 1 4 . 2 . 6 . 6 . 10 . 8 1 . 3 . 3 2 . . 3 Terminals 70 | . 8 10 . 9 6 . 1 3 4 2 3 . 7 . . . . . . 2 . . . 6 . 4 . . . . 2 1 . . 2 Fabricators 16 | . . . . . . . . . 4 . 2 . 2 . . . . . . 2 . 3 . 1 . 2 . . . . . . . . . Repair Stations 8 | . . . . 1 1 . . . . . 1 . 1 . . . . 1 . . . . . 1 . 1 . . . . . 1 . . . Recycling Units 4 | . . 2 . 1 . . . . . . . . . . . . . . . . . 1 . . . . . . . . . . . . . Scanalyzers 4 | . . 2 . . 1 . . . . . 1 . . . . . . . . . . . . . . . . . . . . . . . . Garrison Access 14 | . . . . 1 1 . 1 . 1 . . . . . . . . 1 . 2 . 2 . 2 . 1 . . . . 1 . . . 1 Total Hacks 357 | . 22 42 . 37 24 . 4 7 28 5 11 . 28 3 1 33 . 2 . 24 . 14 . 26 . 20 1 . 12 . 5 3 . . 5 Successful 205 | . 13 24 . 22 13 . 3 3 11 2 5 . 13 3 1 33 . 2 . 8 . 6 . 15 . 8 1 . 12 . 3 1 . . 3 Failed 151 | . 9 18 . 14 11 . 1 4 17 3 6 . 15 . . . . . . 16 . 8 . 11 . 12 . . . . 2 2 . . 2 Catastrophic 19 | . . 1 . . . . 1 2 1 . 1 . 4 . . . . . . 4 . 1 . . . 2 . . . . 1 1 . . . Database Lockouts 1 | . . . . 1 . . . . . . . . . . . . . . . . . . . . . . . . . . . . . . . Manual 235 | . 21 32 . 35 21 . 3 4 20 . 7 . 20 . . . . 1 . 20 . 12 . 22 . 9 . . . . 4 1 . . 3 Terminals 207 | . 22 29 . 32 20 . 3 7 14 5 6 . 21 . . . . . . 5 . . . 19 . 14 . . . . 4 2 . . 4 Fabricators 31 | . . . . . . . . . 11 . 3 . 3 . . . . . . 5 . 4 . 3 . 2 . . . . . . . . . Repair Stations 14 | . . . . 2 1 . . . . . 1 . 4 . . . . 1 . . . . . 1 . 3 . . . . . 1 . . . Recycling Units 8 | . . 4 . 1 . . . . . . . . . . . . . . . . . 3 . . . . . . . . . . . . . Scanalyzers 12 | . . 9 . . 2 . . . . . 1 . . . . . . . . . . . . . . . . . . . . . . . . Garrison Access 35 | . . . . 2 1 . 1 . 3 . . . . . . . . 1 . 14 . 7 . 3 . 1 . . . . 1 . . . 1 Terminal Hacks 82 | . 3 5 . 7 . . . 3 2 2 1 . 4 3 1 33 . . . 1 . . . 1 . 2 1 . 12 . . . . . 1 Record 18 | . . . . . . . . . . . . . . 3 . 11 . . . . . . . . . . . . 4 . . . . . . Part Schematic 18 | . . . . 2 . . . . . . 1 . . . . 11 . . . . . . . . . . . . 4 . . . . . . Robot Schematic 8 | . . . . . . . . . . . . . . . . 8 . . . . . . . . . . . . . . . . . . . Robot Analysis 5 | . . 3 . 2 . . . . . . . . . . . . . . . . . . . . . . . . . . . . . . . Prototype ID Bank 9 | . . . . . . . . . . . . . 1 . . 3 . . . 1 . . . . . . . . 4 . . . . . . Open Door 3 | . . . . . . . . 1 . . . . . . 1 . . . . . . . . . . . 1 . . . . . . . . Branch Access Points 3 | . . . . . . . . . . . . . 1 . . . . . . . . . . 1 . 1 . . . . . . . . . Emergency Access Points 2 | . . . . . . . . 1 . 1 . . . . . . . . . . . . . . . . . . . . . . . . . Terminal Index 2 | . . 1 . 1 . . . . . . . . . . . . . . . . . . . . . . . . . . . . . . . Unreport Threat 1 | . . . . . . . . . . . . . . . . . . . . . . . . . . 1 . . . . . . . . . Zone Layout 11 | . 3 1 . 2 . . . . 2 . . . 2 . . . . . . . . . . . . . . . . . . . . . 1 Security Stations 2 | . . . . . . . . 1 . 1 . . . . . . . . . . . . . . . . . . . . . . . . . Fabricator Hacks 2 | . . . . . . . . . 1 . 1 . . . . . . . . . . . . . . . . . . . . . . . . Network Status 2 | . . . . . . . . . 1 . 1 . . . . . . . . . . . . . . . . . . . . . . . . Repair Station Hacks 7 | . . . . 2 . . . . . . . . 4 . . . . . . . . . . . . 1 . . . . . . . . . Scan Component 4 | . . . . 1 . . . . . . . . 2 . . . . . . . . . . . . 1 . . . . . . . . . Repair 3 | . . . . 1 . . . . . . . . 2 . . . . . . . . . . . . . . . . . . . . . . Recycling Unit Hacks . | . . . . . . . . . . . . . . . . . . . . . . . . . . . . . . . . . . . . Scanalyzer 7 | . . 7 . . . . . . . . . . . . . . . . . . . . . . . . . . . . . . . . . Insert Component 4 | . . 4 . . . . . . . . . . . . . . . . . . . . . . . . . . . . . . . . . Analyze 3 | . . 3 . . . . . . . . . . . . . . . . . . . . . . . . . . . . . . . . . Garrison Access Hacks 14 | . . . . 1 1 . 1 . 1 . . . . . . . . 1 . 2 . 2 . 3 . . . . . . 1 . . . 1 Unlock Access 7 | . . . . . . . 1 . 1 . . . . . . . . . . 2 . 2 . 1 . . . . . . . . . . . Seal Access 6 | . . . . 1 1 . . . . . . . . . . . . 1 . . . . . 1 . . . . . . 1 . . . 1 Coupler Status 1 | . . . . . . . . . . . . . . . . . . . . . . . . 1 . . . . . . . . . . . Unauthorized Hacks 92 | . 10 11 . 12 12 . 2 . 7 . 3 . 5 . . . . 1 . 5 . 4 . 11 . 5 . . . . 2 1 . . 1 Terminals 67 | . 10 9 . 11 11 . 2 . 4 . 1 . 4 . . . . . . 1 . . . 9 . 2 . . . . 2 . . . 1 Track 4 | . . 1 . 2 . . . . . . . . . . . . . . . . . . . . . . . . . . 1 . . . . Assimilate 4 | . . . . 1 1 . . . 1 . . . . . . . . . . . . . . . . . . . . . . . . . 1 Botnet 28 | . 3 3 . 3 3 . 1 . 3 . 1 . 4 . . . . . . 1 . . . 3 . 2 . . . . 1 . . . . Disrupt 1 | . . . . . 1 . . . . . . . . . . . . . . . . . . . . . . . . . . . . . . Skim 30 | . 7 5 . 5 6 . 1 . . . . . . . . . . . . . . . . 6 . . . . . . . . . . . Fabricators 13 | . . . . . . . . . 3 . 2 . 1 . . . . . . 1 . 3 . 1 . 2 . . . . . . . . . Fabnet 13 | . . . . . . . . . 3 . 2 . 1 . . . . . . 1 . 3 . 1 . 2 . . . . . . . . . Repair Stations 4 | . . . . . 1 . . . . . . . . . . . . 1 . . . . . 1 . . . . . . . 1 . . . Patch 4 | . . . . . 1 . . . . . . . . . . . . 1 . . . . . 1 . . . . . . . 1 . . . Recycling Units 3 | . . 2 . 1 . . . . . . . . . . . . . . . . . . . . . . . . . . . . . . . Tunnel 3 | . . 2 . 1 . . . . . . . . . . . . . . . . . . . . . . . . . . . . . . . Scanalyzers . | . . . . . . . . . . . . . . . . . . . . . . . . . . . . . . . . . . . . Garrison Access 5 | . . . . . . . . . . . . . . . . . . . . 3 . 1 . . . 1 . . . . . . . . . Reprogram 2 | . . . . . . . . . . . . . . . . . . . . 1 . 1 . . . . . . . . . . . . . Intercept 2 | . . . . . . . . . . . . . . . . . . . . 1 . . . . . 1 . . . . . . . . . Watchers 1 | . . . . . . . . . . . . . . . . . . . . 1 . . . . . . . . . . . . . . . Data Cores Recovered 3 | . . 1 . . 1 . . . . . 1 . . . . . . . . . . . . . . . . . . . . . . . . Used 1 | . . . . . 1 . . . . . . . . . . . . . . . . . . . . . . . . . . . . . . Hacking Detections 89 | . 8 12 . 10 7 . 1 2 7 1 5 . 9 . . . . . . 6 . 4 . 7 . 5 . . . . 2 1 . . 2 Full Trace Events 7 | . . 1 . . . . . . . . 1 . . . . . . . . 1 . 1 . . . 2 . . . . . 1 . . . Feedback Events . | . . . . . . . . . . . . . . . . . . . . . . . . . . . . . . . . . . . . Feedback Blocked . | . . . . . . . . . . . . . . . . . . . . . . . . . . . . . . . . . . . . Robot Schematics Acquired 8 | . . . . . . . . . . . . . . . . 8 . . . . . . . . . . . . . . . . . . . Robots Built . | . . . . . . . . . . . . . . . . . . . . . . . . . . . . . . . . . . . . Authchips . | . . . . . . . . . . . . . . . . . . . . . . . . . . . . . . . . . . . . Time . | . . . . . . . . . . . . . . . . . . . . . . . . . . . . . . . . . . . . Total Robot Build Rating . | . . . . . . . . . . . . . . . . . . . . . . . . . . . . . . . . . . . . Part Schematics Acquired 21 | . . 3 . 2 . . . . . . 1 . . . . 11 . . . . . . . . . . . . 4 . . . . . . Parts Built . | . . . . . . . . . . . . . . . . . . . . . . . . . . . . . . . . . . . . Authchips . | . . . . . . . . . . . . . . . . . . . . . . . . . . . . . . . . . . . . Time . | . . . . . . . . . . . . . . . . . . . . . . . . . . . . . . . . . . . . Total Part Build Rating . | . . . . . . . . . . . . . . . . . . . . . . . . . . . . . . . . . . . . Parts Repaired 3 | . . . . 1 . . . . . . . . 2 . . . . . . . . . . . . . . . . . . . . . . Time 102 | . . . . 26 . . . . . . . . 76 . . . . . . . . . . . . . . . . . . . . . . Parts Recycled . | . . . . . . . . . . . . . . . . . . . . . . . . . . . . . . . . . . . . Recycled Matter . | . . . . . . . . . . . . . . . . . . . . . . . . . . . . . . . . . . . . Retrieved Matter . | . . . . . . . . . . . . . . . . . . . . . . . . . . . . . . . . . . . . Retrieved Components . | . . . . . . . . . . . . . . . . . . . . . . . . . . . . . . . . . . . . Parts Scanalyzed 4 | . . 4 . . . . . . . . . . . . . . . . . . . . . . . . . . . . . . . . . Part Schematics Acquired 3 | . . 3 . . . . . . . . . . . . . . . . . . . . . . . . . . . . . . . . . Parts Damaged 1 | . . 1 . . . . . . . . . . . . . . . . . . . . . . . . . . . . . . . . . Bothacking | -11 -10 -9 -9 -8 -7 -7 -7 -7 -7 -7 -6 -6 -6 -6 -6 -6 -5 -5 -5 -5 -5 -5 -5 -4 -4 -4 -4 -4 -4 -3 -3 -2 -2 -2 -1 ------------ Run | Yrd Mat Mat Min Mat Fac Was Fac Gar Fac Gar Fac Was Fac Low Low Dat Pro Fac Was Fac Gar Fac Gar Fac Gar Fac Upp Upp Zhi Pro Res Res Qua Sec Acc Used RIF Installer 5 | . . . . . . . . 1 . 1 . . . . . . . . . . 1 . 1 . 1 . . . . . . . . . . Coupler Efficiency 1 | . . . . . . . . . . . . . . . . . . . . . . . . . 1 . . . . . . . . . . Patrol Navigation 1 | . . . . . . . . . . 1 . . . . . . . . . . . . . . . . . . . . . . . . . Alert ID Control 1 | . . . . . . . . . . . . . . . . . . . . . 1 . . . . . . . . . . . . . . Program Shield 1 | . . . . . . . . . . . . . . . . . . . . . . . 1 . . . . . . . . . . . . Robots Hacked 27 | . . . . . . . . . . . . . . . 3 . 1 2 . 2 2 . . 3 1 8 1 1 . 1 1 . 1 . . Non-combat 3 | . . . . . . . . . . . . . . . . . . . . . . . . . . 1 . 1 . . . . 1 . . Combat 24 | . . . . . . . . . . . . . . . 3 . 1 2 . 2 2 . . 3 1 7 1 . . 1 1 . . . . Robot Hacks Applied 4 | . . . . . . . . . . . . . . . . . . . . . . . . . . 1 . 2 . . . . 1 . . generate_echo 1 | . . . . . . . . . . . . . . . . . . . . . . . . . . . . 1 . . . . . . . formatsys_low 3 | . . . . . . . . . . . . . . . . . . . . . . . . . . 1 . 1 . . . . 1 . . Relay Couplers Released 27 | . . . . . . . . 14 . 4 . . . . . . . . . . 4 . 3 . . 2 . . . . . . . . . Machine Destruction 27 | . . . . . . . . 14 . 4 . . . . . . . . . . 4 . 3 . . 2 . . . . . . . . . Attached 1 | . . . . . . . . . . . . . . . . . . . . . . . . . . 1 . . . . . . . . . Fabnet Peak Effective % 15 | . . . . . . . . . . . 9 9 9 9 9 9 12 12 12 12 12 12 12 15 15 15 15 15 15 13 13 3 3 3 . Autooverrided 24 | . . . . . . . . . . . . . . . 3 . 1 2 . 2 2 . . 3 1 7 1 . . 1 1 . . . . Robots Rewired 8 | . . . . . . . . . . . . . . . . . . . . . 2 . 6 . . . . . . . . . . . . Allies Hacked 2 | . . . . . . . . . . 1 . . . . . . . . . . . . 1 . . . . . . . . . . . . Hacks Repelled . | . . . . . . . . . . . . . . . . . . . . . . . . . . . . . . . . . . . . Allies | -11 -10 -9 -9 -8 -7 -7 -7 -7 -7 -7 -6 -6 -6 -6 -6 -6 -5 -5 -5 -5 -5 -5 -5 -4 -4 -4 -4 -4 -4 -3 -3 -2 -2 -2 -1 -------- Run | Yrd Mat Mat Min Mat Fac Was Fac Gar Fac Gar Fac Was Fac Low Low Dat Pro Fac Was Fac Gar Fac Gar Fac Gar Fac Upp Upp Zhi Pro Res Res Qua Sec Acc Total Allies 90 | . . . 1 . 1 21 . 2 1 2 . . . 2 3 . 1 2 20 5 4 1 6 3 1 8 1 1 . 1 1 . 1 . 1 Largest Group 21 | . . . 1 . 1 21 21 21 13 9 . . . 2 2 . 1 1 20 18 17 3 2 2 1 2 1 1 . 1 1 . 1 . 1 Highest-Rated Group 715 | . . . 31 . 10 507 507 639 453 347 . . . 40 76 . 49 12 715 671 710 89 41 105 14 116 58 33 . 47 47 . 26 . 26 Highest-Rated Ally 116 | . . . 31 . 10 31 31 80 80 80 . . . 20 47 . 49 12 50 50 99 41 41 56 14 116 58 33 . 47 47 . 26 . 26 Total Orders 1 | . . . . . . . . . . . . . . . . . . . . . . . . . . 1 . . . . . . . . . AID 1 | . . . . . . . . . . . . . . . . . . . . . . . . . . 1 . . . . . . . . . Ally Attacks 448 | . . . . . . . . 99 32 30 . . . . 9 . . 2 94 45 92 8 15 6 1 10 1 . . 2 2 . . . . Total Damage 10740 | . . . . . . . . 1693 476 806 . . . . 168 . . . 2831 1469 2033 173 179 221 . 548 45 . . 39 59 . . . . Kills 66 | . . . . . . . . 18 5 7 . . . . 1 . . . 7 8 17 . . 2 . 1 . . . . . . . . . Allies Corrupted 4 | . . . . . . . . 2 . 1 . . . . . . . . . . . . 1 . . . . . . . . . . . . Allies Melted . | . . . . . . . . . . . . . . . . . . . . . . . . . . . . . . . . . . . . Intel | -11 -10 -9 -9 -8 -7 -7 -7 -7 -7 -7 -6 -6 -6 -6 -6 -6 -5 -5 -5 -5 -5 -5 -5 -4 -4 -4 -4 -4 -4 -3 -3 -2 -2 -2 -1 ------- Run | Yrd Mat Mat Min Mat Fac Was Fac Gar Fac Gar Fac Was Fac Low Low Dat Pro Fac Was Fac Gar Fac Gar Fac Gar Fac Upp Upp Zhi Pro Res Res Qua Sec Acc Active Infowar (turns) 9001 | 49 575 1618 933 1583 680 138 165 47 290 79 199 14 300 59 145 53 94 90 164 186 344 98 73 226 28 189 26 . 48 204 131 108 . . 65 Optics 81 | . 81 . . . . . . . . . . . . . . . . . . . . . . . . . . . . . . . . . . Sensors 4458 | . . . 2 817 680 138 165 47 290 79 196 . 198 59 123 16 94 90 164 186 344 98 73 226 17 183 . . . . . 108 . . 65 IFF 383 | . . . . . . . . . . . . . . . . . . . . . . . . . . . . . 48 204 131 . . . . Terrain 15 | . . . . . 15 . . . . . . . . . . . . . . . . . . . . . . . . . . . . . . Structural 4641 | . . 1406 931 766 . . . . . . 198 14 300 59 145 53 94 57 164 186 25 . . 126 28 89 . . . . . . . . . Seismic 836 | 49 575 212 . . . . . . . . . . . . . . . . . . . . . . . . . . . . . . . . . ECM 26 | . . . . . . . . . . . . . . . . . . . . . . . . . . . 26 . . . . . . . . Robot Analysis Total 156 | . . 3 . 2 . . . . . . . . . . . 151 . . . . . . . . . . . . . . . . . . . Derelict Logs Recovered 8 | . . . 1 . . . . . . . . . . 1 2 . 1 . . . . . . . . . 1 2 . . . . . . . Drone Launches . | . . . . . . . . . . . . . . . . . . . . . . . . . . . . . . . . . . . . Drone Recoveries . | . . . . . . . . . . . . . . . . . . . . . . . . . . . . . . . . . . . . Exploration | -11 -10 -9 -9 -8 -7 -7 -7 -7 -7 -7 -6 -6 -6 -6 -6 -6 -5 -5 -5 -5 -5 -5 -5 -4 -4 -4 -4 -4 -4 -3 -3 -2 -2 -2 -1 ------------- Run | Yrd Mat Mat Min Mat Fac Was Fac Gar Fac Gar Fac Was Fac Low Low Dat Pro Fac Was Fac Gar Fac Gar Fac Gar Fac Upp Upp Zhi Pro Res Res Qua Sec Acc Turns Passed 11604 | 88 1240 2034 936 1583 776 138 165 308 324 264 202 14 300 59 145 53 94 146 164 186 344 98 149 226 72 212 234 118 120 204 156 134 121 48 149 Spaces Moved 12759 | 63 570 909 361 749 1054 171 114 559 729 441 571 61 704 218 323 96 214 262 313 286 307 252 213 450 82 453 420 202 177 333 193 295 241 69 304 Core 845 | 5 . . . . . . . . . . . . . . . . . . . . . . . . . . 31 202 177 333 45 2 50 . . Treads 1927 | 2 . 757 361 749 58 . . . . . . . . . . . . . . . . . . . . . . . . . . . . . . Legs . | . . . . . . . . . . . . . . . . . . . . . . . . . . . . . . . . . . . . Wheels 778 | 56 570 152 . . . . . . . . . . . . . . . . . . . . . . . . . . . . . . . . . Hover 150 | . . . . . . . . . . . . . . . . . . . . . . . . . . . . . . . 126 24 . . . Flight 9059 | . . . . . 996 171 114 559 729 441 571 61 704 218 323 96 214 262 313 286 307 252 213 450 82 453 389 . . . 22 269 191 69 304 Fastest Speed 19 | 50 80 135 240 160 23 24 24 25 25 25 21 23 23 26 22 22 22 24 19 26 19 24 23 20 21 22 35 50 50 50 27 27 37 37 34 Average Speed 57 | 80 119 162 240 161 32 24 24 25 25 25 26 23 26 26 24 24 25 27 23 26 22 24 23 24 23 24 42 53 50 50 53 28 40 37 36 Slowest Speed 320 | 160 200 320 240 163 162 24 25 25 25 25 27 23 31 26 26 25 30 114 106 26 26 24 31 29 25 39 250 100 50 100 60 50 50 37 40 Overloaded Moves . | . . . . . . . . . . . . . . . . . . . . . . . . . . . . . . . . . . . . Propulsion Burnouts . | . . . . . . . . . . . . . . . . . . . . . . . . . . . . . . . . . . . . Robots Hopped 64 | . . . . . 4 . . . 2 . 5 . 6 . 1 . . . 5 1 5 2 . 1 . 11 3 . . . 2 11 1 3 1 Potential Cave-ins 5 | . . . . . . . . . . . . . . . . . . . . . . . . . 5 . . . . . . . . . . Cave-ins Triggered 1 | . . . . . . . . . . . . . . . . . . . . . . . . . 1 . . . . . . . . . . Exploration Rate (%) 42 | 4 94 83 80 69 29 88 6 85 29 68 23 73 20 49 54 77 45 12 89 12 50 11 28 21 24 22 62 34 62 50 9 11 37 8 17 Regions Visited 35 Branch Regions 11 Pre-discovered Areas 44 | . . 3 1 1 2 . . . . . . . . . . 33 . . . . . . . . . . . 1 3 . . . . . . Known Exits Taken 22 | . . 1 1 1 . . 1 . 1 . . . 1 1 1 1 1 . . 1 . 1 . 1 . 1 1 1 1 1 1 1 1 1 . Unknown Exits Taken 2 | 1 1 . . . . . . . . . . . . . . . . . . . . . . . . . . . . . . . . . . Scrap Searched 9 | . . . 1 . . . . . . . . . . 1 5 . . . . . . . . . . . 1 1 . . . . . . . Spaces Dug 183 | . . 9 . 17 1 . . 1 8 8 7 . 11 . 2 . . 12 . 11 5 8 2 23 14 14 9 . . 2 5 4 1 2 7 Terrain Destroyed 569 | . . 17 19 84 2 . . 1 8 77 7 . 12 . 2 . 22 12 10 29 17 8 43 23 103 14 9 . . 2 5 6 1 2 34 Melee 162 | . . 9 . 17 1 . . 1 8 8 7 . 11 . 2 . . 12 . 2 5 8 2 23 5 14 9 . . 2 5 3 1 2 5 Projectile 8 | . . . . 3 . . . . . . . . . . . . . . . . . . . . . . . . . . . 3 . . 2 AOE 399 | . . 8 19 64 1 . . . . 69 . . 1 . . . 22 . 10 27 12 . 41 . 98 . . . . . . . . . 27 Terrain Rammed . | . . . . . . . . . . . . . . . . . . . . . . . . . . . . . . . . . . . . Walls Destroyed . | . . . . . . . . . . . . . . . . . . . . . . . . . . . . . . . . . . . . Machines Disabled . | . . . . . . . . . . . . . . . . . . . . . . . . . . . . . . . . . . . . Actions | -11 -10 -9 -9 -8 -7 -7 -7 -7 -7 -7 -6 -6 -6 -6 -6 -6 -5 -5 -5 -5 -5 -5 -5 -4 -4 -4 -4 -4 -4 -3 -3 -2 -2 -2 -1 --------- Run | Yrd Mat Mat Min Mat Fac Was Fac Gar Fac Gar Fac Was Fac Low Low Dat Pro Fac Was Fac Gar Fac Gar Fac Gar Fac Upp Upp Zhi Pro Res Res Qua Sec Acc Total 15906 | 82 1047 1229 405 971 1444 267 252 678 846 525 598 60 788 220 377 116 240 303 392 383 535 273 274 530 118 515 459 211 197 365 228 321 255 78 324 Wait 2058 | . 404 124 3 91 317 97 136 70 103 33 5 . 54 1 40 14 13 9 64 86 179 9 10 54 16 45 27 1 . 29 8 9 . 2 5 Move 12612 | 62 569 908 360 748 1046 170 114 558 724 440 562 60 692 217 320 95 213 262 304 283 298 247 212 447 80 433 414 201 176 332 188 275 238 63 301 Hop 50 | . . . . . 4 . . . 2 . 4 . 5 . 1 . . . 3 1 3 2 . 1 . 8 2 . . . 2 8 1 2 1 Pick Up 82 | 4 8 13 7 9 7 . . 4 . 1 2 . 2 1 2 . 1 . 3 1 . . 3 1 . 4 . 2 4 . . 2 1 . . Fast Attach 91 | 6 4 9 2 5 11 . . . . . . . 6 . 1 . 1 8 3 . 3 1 4 1 . . 1 . 3 . 5 7 4 3 3 Attach 64 | . 2 12 . 5 1 . . . . 1 5 . 2 . 1 . 1 1 2 . 1 . . . 5 2 2 2 3 1 5 5 1 1 3 Detach 29 | . 1 3 1 1 . . . . . . . . 2 1 . . 1 1 . . . 1 . . 1 . . 1 1 1 4 5 1 1 2 Swap 124 | 1 4 30 5 22 6 . 1 4 2 1 6 . 5 . 2 2 1 . 6 1 7 2 6 2 5 1 1 . . . . 1 . . . Drop 95 | . 4 5 10 9 13 . 1 7 1 . 2 . 7 . 3 . . 2 4 2 5 2 3 1 . 1 3 1 3 . 1 1 3 1 . Fire 298 | 9 50 107 13 57 7 . . . . 11 . . . . . . 3 . 3 4 5 . 6 . 4 . . 3 . . 6 4 2 1 3 Melee 355 | . . 13 . 22 14 . . 35 14 38 12 . 13 . 7 5 6 20 . 5 25 9 27 23 6 20 9 . 7 2 5 4 4 4 6 Ram 4 | . . . . . . . . . . . . . . . . . . . . . . . . . . . . . . . 4 . . . . Kick . | . . . . . . . . . . . . . . . . . . . . . . . . . . . . . . . . . . . . Crush 9 | . 1 5 3 . . . . . . . . . . . . . . . . . . . . . . . . . . . . . . . . Escape Stasis 21 | . . . . . 18 . . . . . . . . . . . . . . . . . 2 . 1 . . . . . . . . . . Rewire 2 | . . . . . . . . . . . . . . . . . . . . . . . 1 . . 1 . . . . . . . . . Trap 12 | . . . 1 2 . . . . . . . . . . . . . . . . 9 . . . . . . . . . . . . . . Miscellaneous . | . . . . . . . . . . . . . . . . . . . . . . . . . . . . . . . . . . . . Route ------- -11/Scrapyard -10/Materials (discovered 6 exits: *Mat x3 / [*Min x2] / Sub) -9/Materials (discovered 5 exits: *Mat x3 / *Min x2) -9/Mines (discovered 2 exits: *Mat x2) -8/Materials (discovered 3 exits: *Fac x3) -7/Factory (discovered 7 exits: *Fac x4 / *Sto x2 / Low) -7/Waste -7/Factory -7/Garrison (discovered 3 exits: *Fac x3) -7/Factory (discovered 2 exits: *Fac / Gar) -7/Garrison (discovered 2 exits: *Fac x2) -6/Factory (discovered 2 exits: *Low / Ext) -6/Waste -6/Factory (discovered 4 exits: *Low x2 / Ext x2) -6/Lower Caves -6/Lower Caves -6/Data Miner -5/Proximity Caves -5/Factory (discovered 2 exits: *Fac x2) -5/Waste -5/Factory (discovered 2 exits: Gar / Gar) -5/Garrison -5/Factory (discovered 2 exits: Gar / Gar) -5/Garrison -4/Factory (discovered 4 exits: *Res / Upp x2 / Gar) -4/Garrison -4/Factory (discovered 2 exits: *Upp x2) -4/Upper Caves -4/Upper Caves -4/Zhirov -3/Proximity Caves -3/Research (discovered 2 exits: *Res / Arm) -2/Research -2/Quarantine (discovered 2 exits: *Sec / [*Frg]) -2/Section 7 -1/Access To Epsilon Eridani History --------- Turn | Location | Event 19 | -11/Scrapyard | Discovered new exit (range 16) 89 | -11/Scrapyard | Entered Materials 311 | -10/Materials | Build established: Mutant 393 | -10/Materials | Discovered new exit (range 9) 462 | -10/Materials | Discovered new exit (range 5) 693 | -10/Materials | Discovered new exit (range 7) 695 | -10/Materials | Core integrity fell below 50% 781 | -10/Materials | Discovered new exit (range 13) 782 | -10/Materials | Discovered new exit (range 12) 956 | -10/Materials | Learned Storage stockpile data 1021 | -10/Materials | Learned 2 Mines zone layouts 1076 | -10/Materials | Learned location of 1 exit from Recycling 1120 | -10/Materials | Loaded intel: 2 trap records 1152 | -10/Materials | Learned 4 Recycling zone layouts 1172 | -10/Materials | Learned Materials trap positions 1223 | -10/Materials | Learned 2 Storage zone layouts 1259 | -10/Materials | Identified exit to Subcaves 1304 | -10/Materials | Learned location of 2 exits from Subcaves 1329 | -10/Materials | Entered another Materials area 1329 | -9/Materials | Evolved 2 slots: Propulsion x1, Utility x1 1330 | -9/Materials | Identified exit to Mines 1331 | -9/Materials | Loaded intel: 11 trap records 1838 | -9/Materials | Discovered new exit (range 3) 2404 | -9/Materials | Build established: Scavenger-Mutant 2460 | -9/Materials | Learned location of 1 exit from Storage 2495 | -9/Materials | Learned Materials trap positions 2520 | -9/Materials | Learned Storage stockpile data 2533 | -9/Materials | Identified exit to Materials 2537 | -9/Materials | Learned Storage garrison access intel 2548 | -9/Materials | Learned Storage stockpile data 2567 | -9/Materials | Loaded intel: 40 non-interactive machine locations 2577 | -9/Materials | Core integrity fell below 50% 2731 | -9/Materials | Lost 6 parts (1p1n2u2w) 3004 | -9/Materials | Lost 4 parts (2n2w) 3363 | -9/Materials | Entered Mines 3425 | -9/Mines | Learned location of Zion (-7) 3454 | -9/Mines | Received a Mining Laser from a helpful Derelict 3540 | -9/Mines | Found a damaged Exp. Sensor Array with a note attached 3550 | -9/Mines | Found Prototype Device 3550 | -9/Mines | Identified Exp. Sensor Array 3773 | -9/Mines | Discovered exit to Materials (range 8) 3882 | -9/Mines | Discovered exit to Materials (range 12) 3966 | -9/Mines | A weapon hastily lodged in a ceiling crevice suddenly fell to the ground 4039 | -9/Mines | Found a hidden stash of uninstalled traps 4088 | -9/Mines | Joined a pair of Derelicts in attacking an 0b10 outpost 4299 | -9/Mines | Entered Materials 4299 | -8/Materials | Evolved 2 slots: Propulsion x1, Utility x1 4300 | -8/Materials | Loaded intel: 9 trap records 5029 | -8/Materials | Discovered new exit (range 7) 5069 | -8/Materials | Identified exit to Factory 5155 | -8/Materials | Repaired Lgt. Treads 5451 | -8/Materials | Central database locked down 5492 | -8/Materials | Learned 2 Storage zone layouts 5526 | -8/Materials | Learned 4 Recycling zone layouts 5567 | -8/Materials | Learned Storage stockpile data 5572 | -8/Materials | Learned Recycling recycling unit intel 5573 | -8/Materials | Learned 2 Storage zone layouts 5574 | -8/Materials | Learned location of 2 exits from Factory 5595 | -8/Materials | Learned Storage trap positions 5882 | -8/Materials | Entered Factory 5882 | -7/Factory | Evolved 2 slots: Propulsion x1, Utility x1 5883 | -7/Factory | Identified exit to Lower Caves 5884 | -7/Factory | Identified exit to Storage 5884 | -7/Factory | Identified exit to Factory 6161 | -7/Factory | Discovered exit to Factory (range 15) 6306 | -7/Factory | Build established: Scavenger-Sprinter 6379 | -7/Factory | Loaded intel: 92 trap records 6440 | -7/Factory | Learned 4 Lower Caves zone layouts 6491 | -7/Factory | Learned location of 2 exits from Archives 6530 | -7/Factory | Learned 2 Lower Caves zone layouts 6634 | -7/Factory | Learned location of Warlord (-5) 6658 | -7/Factory | Manually triggered Chute Trap 6658 | -7/Factory | Sucked down chute 6658 | -7/Factory | Entered Waste 6658 | -7/Waste | Met up with 1 ally sucked down the chute earlier 6659 | -7/Waste | Joined by Warlord forces that had cleared the area 6691 | -7/Waste | Discovered new exit (range 16) 6698 | -7/Waste | Identified exit to Factory 6796 | -7/Waste | Entered Factory 6796 | -7/Factory | Accompanied by 21 allies 6825 | -7/Factory | Identified exit to Garrison 6961 | -7/Factory | Entered Garrison 6961 | -7/Garrison | Accompanied by 21 allies 6977 | -7/Garrison | Garrison Relay disabled 6997 | -7/Garrison | P-60 Hacker assimilated allied 41-I4E(s) 7021 | -7/Garrison | Triggered checkpoint 7050 | -7/Garrison | Discovered new exit (range 14) 7053 | -7/Garrison | Identified exit to Factory 7062 | -7/Garrison | Found embedded Infiltrators 7067 | -7/Garrison | Triggered checkpoint 7067 | -7/Garrison | Garrison Relay disabled 7075 | -7/Garrison | Triggered checkpoint 7105 | -7/Garrison | Triggered checkpoint 7124 | -7/Garrison | Rescued a captive Derelict 7126 | -7/Garrison | Rescued a captive Derelict 7129 | -7/Garrison | Discovered exit to Factory (range 10) 7142 | -7/Garrison | Learned Factory security intel 7151 | -7/Garrison | Triggered checkpoint 7160 | -7/Garrison | Spotted B-75 Beast 7173 | -7/Garrison | Triggered checkpoint 7175 | -7/Garrison | Triggered checkpoint 7180 | -7/Garrison | Installed Relay Interface Framework 7181 | -7/Garrison | Lost 7 allies 7185 | -7/Garrison | Garrison Relay disabled 7192 | -7/Garrison | Discovered exit to Factory (range 14) 7269 | -7/Garrison | Entered Factory 7269 | -7/Factory | Accompanied by 13 allies 7382 | -7/Factory | Identified exit to Garrison 7401 | -7/Factory | Discovered exit to Factory (range 17) 7593 | -7/Factory | Entered Garrison 7593 | -7/Garrison | Accompanied by 7 allies 7615 | -7/Garrison | Found embedded Infiltrators 7634 | -7/Garrison | Garrison Relay disabled 7643 | -7/Garrison | Triggered checkpoint 7701 | -7/Garrison | Triggered checkpoint 7718 | -7/Garrison | Triggered checkpoint 7718 | -7/Garrison | Discovered exit to Factory (range 12) 7825 | -7/Garrison | Discovered exit to Factory (range 12) 7828 | -7/Garrison | Expanded RIF knowledge: Patrol Navigation 7844 | -7/Garrison | Triggered checkpoint 7851 | -7/Garrison | Learned Factory security intel 7857 | -7/Garrison | Entered Factory 7857 | -6/Factory | Evolved 2 slots: Propulsion x1, Utility x1 7858 | -6/Factory | Identified exit to Extension 7910 | -6/Factory | Discovered new exit (range 10) 7923 | -6/Factory | Identified exit to Lower Caves 7967 | -6/Factory | Spotted B-75 Beast 8059 | -6/Factory | Manually triggered Chute Trap 8059 | -6/Factory | Sucked down chute 8059 | -6/Factory | Entered Waste 8064 | -6/Waste | Spotted C-40 Crusher 8064 | -6/Waste | Spotted C-40 Crusher 8064 | -6/Waste | Spotted C-40 Crusher 8064 | -6/Waste | Spotted C-40 Crusher 8071 | -6/Waste | Spotted C-40 Crusher 8071 | -6/Waste | Discovered new exit (range 10) 8073 | -6/Waste | Identified exit to Factory 8073 | -6/Waste | Entered Factory 8275 | -6/Factory | Spotted B-75 Beast 8301 | -6/Factory | Repaired Imp. Propulsion Shielding 8341 | -6/Factory | Repaired Imp. Sensor Array 8373 | -6/Factory | Entered Lower Caves 8380 | -6/Lower Caves | Encountered a Warlord checkpoint 8390 | -6/Lower Caves | Learned Factory trap positions 8408 | -6/Lower Caves | Learned Factory terminal intel 8408 | -6/Lower Caves | Learned Extension garrison access intel 8408 | -6/Lower Caves | A Commander dispatched an escort 8431 | -6/Lower Caves | Discovered new exit (range 7) 8432 | -6/Lower Caves | Identified exit to Lower Caves 8432 | -6/Lower Caves | Entered another Lower Caves area 8444 | -6/Lower Caves | Learned Factory terminal intel 8454 | -6/Lower Caves | Learned location of 1 exit from Factory 8491 | -6/Lower Caves | Found DCF Scrap (17 items) 8574 | -6/Lower Caves | Discovered new exit (range 13) 8577 | -6/Lower Caves | Identified exit to Data Miner 8577 | -6/Lower Caves | Entered Data Miner 8577 | -6/Data Miner | Discovered new exit (range 6) 8579 | -6/Data Miner | Identified exit to Proximity Caves 8582 | -6/Data Miner | Met Data Miner 8587 | -6/Data Miner | Learned location of Section 7 (-2) 8587 | -6/Data Miner | Acquired the access code to Warlord's prototype stash 8591 | -6/Data Miner | Received God Mode back door access code from Data Miner 8598 | -6/Data Miner | Interfaced with the Data Conduit 8630 | -6/Data Miner | Entered Proximity Caves 8724 | -5/Proximity Caves | Discovered new exit (range 3) 8724 | -5/Proximity Caves | Identified exit to Factory 8724 | -5/Proximity Caves | Entered Factory 8724 | -5/Factory | Evolved 2 slots: Propulsion x1, Utility x1 8725 | -5/Factory | Identified exit to Factory 8726 | -5/Factory | Loaded intel: 114 trap records 8727 | -5/Factory | Loaded intel: 313 machine locations 8728 | -5/Factory | Loaded intel: 26 terminal locations 8736 | -5/Factory | Lost 4 parts (1p3n) 8763 | -5/Factory | Local machine network offline 8808 | -5/Factory | Lost 3 parts (3n) 8864 | -5/Factory | Discovered exit to Factory (range 11) 8870 | -5/Factory | Sucked down chute 8870 | -5/Factory | Entered Waste 8871 | -5/Waste | Met a frightened Derelict 8874 | -5/Waste | Spotted C-40 Crusher 8876 | -5/Waste | Spotted C-40 Crusher 8878 | -5/Waste | Spotted C-40 Crusher 8878 | -5/Waste | Spotted C-40 Crusher 8880 | -5/Waste | Spotted C-40 Crusher 8884 | -5/Waste | Spotted C-40 Crusher 8899 | -5/Waste | Warlord forces began an assault 8920 | -5/Waste | Allies destroyed C-40 Crusher 8922 | -5/Waste | Allies destroyed C-40 Crusher 8931 | -5/Waste | Allies destroyed C-40 Crusher 8934 | -5/Waste | Allies destroyed C-40 Crusher 8934 | -5/Waste | Allies destroyed C-40 Crusher 8945 | -5/Waste | Allies destroyed C-40 Crusher 8957 | -5/Waste | Discovered new exit (range 16) 8976 | -5/Waste | Lost 5 allies 8976 | -5/Waste | Identified exit to Factory 9034 | -5/Waste | Entered Factory 9034 | -5/Factory | Accompanied by 14 allies 9035 | -5/Factory | Loaded intel: 255 machine locations 9036 | -5/Factory | Loaded intel: 26 terminal locations 9049 | -5/Factory | Identified exit to Garrison 9103 | -5/Factory | Identified exit to Garrison 9145 | -5/Factory | Garrison activated, responded to threat 9220 | -5/Factory | Entered Garrison 9220 | -5/Garrison | Accompanied by 14 allies 9221 | -5/Garrison | Loaded intel: 26 machine locations 9237 | -5/Garrison | Rewired Striker 9238 | -5/Garrison | Rewired Striker 9264 | -5/Garrison | Local machine network offline 9264 | -5/Garrison | Triggered checkpoint 9266 | -5/Garrison | Triggered checkpoint 9272 | -5/Garrison | Garrison Relay disabled 9281 | -5/Garrison | Triggered checkpoint 9287 | -5/Garrison | Triggered checkpoint 9326 | -5/Garrison | Lost 3 parts (1n2u) 9327 | -5/Garrison | Discovered new exit (range 10) 9374 | -5/Garrison | Triggered checkpoint 9382 | -5/Garrison | Triggered checkpoint 9388 | -5/Garrison | Expanded RIF knowledge: Alert ID Control 9415 | -5/Garrison | Identified exit to Factory 9532 | -5/Garrison | Lost 12 allies 9564 | -5/Garrison | Entered Factory 9564 | -5/Factory | Accompanied by 3 allies 9565 | -5/Factory | Loaded intel: 299 machine locations 9575 | -5/Factory | Identified exit to Garrison 9651 | -5/Factory | Identified exit to Garrison 9662 | -5/Factory | Entered Garrison 9662 | -5/Garrison | Accompanied by 1 ally 9663 | -5/Garrison | Loaded intel: 32 machine locations 9672 | -5/Garrison | Expanded RIF knowledge: Program Shield 9678 | -5/Garrison | Garrison Relay disabled 9680 | -5/Garrison | Triggered checkpoint 9754 | -5/Garrison | Lost 3 parts (1p2n) 9770 | -5/Garrison | Lost 7 allies 9785 | -5/Garrison | Triggered checkpoint 9785 | -5/Garrison | Spotted B-75 Beast 9793 | -5/Garrison | Discovered exit to Factory (range 10) 9811 | -5/Garrison | Entered Factory 9811 | -4/Factory | Evolved 2 slots: Power x1, Propulsion x1 9812 | -4/Factory | Loaded intel: 307 machine locations 9922 | -4/Factory | Identified exit to Upper Caves 9923 | -4/Factory | Spotted B-86 Titan 9980 | -4/Factory | Discovered new exit (range 8) 9983 | -4/Factory | Identified exit to Garrison 10037 | -4/Factory | Entered Garrison 10038 | -4/Garrison | Loaded intel: 44 machine locations 10067 | -4/Garrison | Phase Generator disabled 10079 | -4/Garrison | Crushed by falling debris 10084 | -4/Garrison | Expanded RIF knowledge: Coupler Efficiency 10098 | -4/Garrison | Discovered new exit (range 14) 10108 | -4/Garrison | Identified exit to Factory 10109 | -4/Garrison | Entered Factory 10110 | -4/Factory | Loaded intel: 250 machine locations 10110 | -4/Factory | Lost 3 parts (1p1n1u) 10247 | -4/Factory | Local machine network offline 10301 | -4/Factory | Spotted B-86 Titan 10321 | -4/Factory | Entered Upper Caves 10330 | -4/Upper Caves | Spotted B-86 Titan 10340 | -4/Upper Caves | Lost 8 parts (1p5n2u) 10347 | -4/Upper Caves | Learned Research security intel 10553 | -4/Upper Caves | Discovered new exit (range 3) 10554 | -4/Upper Caves | Identified exit to Upper Caves 10555 | -4/Upper Caves | Attracted the attention of an 0b10 checkpoint 10555 | -4/Upper Caves | Entered another Upper Caves area 10569 | -4/Upper Caves | Learned Research trap positions 10584 | -4/Upper Caves | Lost 7 parts (3n2u2w) 10669 | -4/Upper Caves | Discovered new exit (range 6) 10672 | -4/Upper Caves | Identified exit to Zhirov 10673 | -4/Upper Caves | Entered Zhirov 10673 | -4/Zhirov | Discovered new exit (range 3) 10674 | -4/Zhirov | Identified exit to Proximity Caves 10708 | -4/Zhirov | Found Alien Artifact 10708 | -4/Zhirov | Identified Integrated Reactor 10708 | -4/Zhirov | Installed Integrated Reactor, increased core energy generation (+10) 10753 | -4/Zhirov | Found Alien Artifact 10793 | -4/Zhirov | Entered Proximity Caves 10991 | -3/Proximity Caves | Discovered new exit (range 12) 10996 | -3/Proximity Caves | Identified exit to Research 10997 | -3/Proximity Caves | Entered Research 10997 | -3/Research | Evolved 2 slots: Propulsion x1, Utility x1 10998 | -3/Research | Identified exit to Armory 10999 | -3/Research | Loaded intel: 95 trap records 11001 | -3/Research | Loaded intel: 93 machine locations 11008 | -3/Research | Build established: Hacker-Mutant 11095 | -3/Research | Discovered new exit (range 15) 11147 | -3/Research | System corruption reached 10% 11153 | -3/Research | Identified exit to Research 11153 | -3/Research | Entered another Research area 11153 | -2/Research | Evolved 2 slots: Propulsion x1, Utility x1 11154 | -2/Research | Loaded intel: 142 machine locations 11173 | -2/Research | Lost 3 parts (2p1u) 11279 | -2/Research | Discovered new exit (range 11) 11283 | -2/Research | Identified exit to Quarantine 11287 | -2/Research | Entered Quarantine 11288 | -2/Quarantine | Loaded intel: 79 machine locations 11293 | -2/Quarantine | Found Alien Artifact 11317 | -2/Quarantine | Lost 10 parts (5n5u) 11342 | -2/Quarantine | Found Alien Slashing Weapon 11342 | -2/Quarantine | Identified Sigix Broadsword 11352 | -2/Quarantine | Found Alien Artifact 11352 | -2/Quarantine | Identified Phase Redirector 11381 | -2/Quarantine | Spotted Fortress 11407 | -2/Quarantine | Discovered new exit (range 5) 11407 | -2/Quarantine | Discovered new exit (range 6) 11408 | -2/Quarantine | Identified exit to Section 7 11408 | -2/Quarantine | Entered Section 7 11409 | -2/Section 7 | Loaded intel: 122 machine locations 11411 | -2/Section 7 | Spotted S7 Guard 11423 | -2/Section 7 | Found Alien Artifact 11423 | -2/Section 7 | Identified Core Membrane 11423 | -2/Section 7 | Installed Core Membrane, gained immunity to corruption 11441 | -2/Section 7 | Found Alien Artifact 11441 | -2/Section 7 | Identified Integrated Dissipator 11441 | -2/Section 7 | Installed Integrated Dissipator, increased core heat dissipation (+20) 11455 | -2/Section 7 | Discovered new exit (range 3) 11456 | -2/Section 7 | Identified exit to Access 11456 | -2/Section 7 | Entered Access 11456 | -1/Access | Evolved 2 slots: Power x1, Weapon x1 11457 | -1/Access | Loaded intel: 124 machine locations 11464 | -1/Access | Energy Cycler disabled 11475 | -1/Access | Spotted B-99 Colossus 11571 | -1/Access | Identified Terrabomb 11571 | -1/Access | Used Terrabomb 11571 | -1/Access | Spotted B-99 Colossus 11603 | -1/Access | Discovered new exit (range 7) 11605 | -1/Access | Identified exit to Surface 11605 | *** | Escaped! Last Messages --------------- 11571_ Penetrated by Slug. 11571_ Slug penetrates Terminal. 11571_ Penetrated by Slug. 11571_ Slug penetrates Terminal. 11571_ Sigix Broadsword destroyed. 11573_ Terminal collapses. 11573_ Terminal disabled. 11577_ Adv. Sensor Array destroyed. 11581_ Slug penetrates Wall. 11582_ W-44 Eye sends out distress signal. 11583_ Penetrated by Slug. 11583_ Nuclear Pulse Array destroyed. 11583_ Slug penetrates Wall. 11584_ Penetrated by Slug. 11587_ Slug penetrates Wall. 11600_ Penetrated by Slug. 11600_ Field Propulsion Array destroyed. 11603_ The Access Shell folds into the floor. 11603_ EXIT=FOUND 11605_ EXIT=IDENTIFIED: SURFACE Map ----- +----------------------------------------------------+ | ?????????????????????????????????????????????????? | | ???????????????""????????????????????????????????? | | ???????????????""??????????"?????????????????????? | | ???????????????""?????????"""????????????????????? | | ???????????????Y"??????????"""???????????????????? | | ???????????????""???????????"????????????????????? | | ???????????????""????????????????????????????????? | | ???????????????""????????????????????????????????? | | ?????????????????????????????????????????????????? | | ???????????????????????????"""""?????????????????? | | ???????????????????????????""Y""??????"??????????? | | ?????????????????????????????????????"""?????????? | | ??????????????????????????????????????"""????????? | | ???????????????????????????????????????"?????????" | | ??????????? ????????????????????????????????????? | | ??????????# ????????????????????????????????????" | | ??????????# ????????????????????????????????????? | | ??????????# ????????????????????????????????????? | | ??????????# ??????###???????????????????????????? | | ??????????# ####### ##########??????????????????? | | ??????????# """T""" """"???????????????? | | ??????????# """ """ """"???????????????? | | ??????????# k """"???????????????? | | ??????????# """"???????????????? | | ??????????# "" """"??????????????? | | ??????????# @" """"??????????????? | | ??????????# k """"??????????????? | | ??????????# """"??????????????? | | ??????????# """"??????????????? | | ??????????# """"??????????????? | | ??????????# k####### ##########?????????????????? | | ??????????# #?????###??????????????????????????# | | ??????????# #################??????????????????# | | ??????????# "" #######?????######?# | | ??????????# ## ## ####### #?# | | ??????????# ## + " #?# | | ????????? ## ## #?# | | ????????### ## ## # #?# | | ??????????# ## ### ### #?# | | ?????????? ###+############?# #?# ###+ | | ?????????? ?????????????????# #?# | | ?????????? ?????????????????#+#?# [ #### | | ?????????? ????????????????? ?# #??# | | ???"?????### ????????????????? ?# #??# | | ???????????? ????????????????? ?# #??# | | ???????????? ???????????????"? ?# #??# | | ???????????? ?????????????"""" ?# #??# | | ???????????? ????????????""""" ?# ########??# | | ???????????????????????????"""""???# ?????????## | | ???????????????????????????""""????# ???????###" | +----------------------------------------------------+ Best States ------------- Heat Dissipation 72 Energy Generation 31 Energy Capacity 295 Matter Stores 300 Matter Capacity 300 Sight Range 18 Robot Scan Range 20 Terrain Scan Range 14 Terrain Scan Density 10 ECM Strength 1 Armor Coverage 225 Resistance: KI 25 Core Shielding 20 Propulsion Shielding 90 Utility Shielding 90 Evasion (%) 72 Melee Accuracy 5 Recoil Reduction 4 Offensive Hacking 24 Defensive Hacking 12 Relay Coupler Types 1 Relay Coupler Value 30 Item Schematics ----------------- Imp. Propulsion Shielding | -9/Materials | Scanalyzed Hacking Suite | -9/Materials | Scanalyzed Plasma Cutter | -9/Materials | Scanalyzed System Shield | -8/Materials | Hacked Reaction Control System | -8/Materials | Hacked Imp. Hacking Suite | -6/Factory | Hacked Combat Drone Bay | -6/Data Miner | Free Lgt. Regenerative Plating | -6/Data Miner | Free Enh. Armored Leg | -6/Data Miner | Free Imp. Matter Compressor | -6/Data Miner | Free Neutron Cannon | -6/Data Miner | Free Imp. Antigrav System | -6/Data Miner | Free Adv. Power Amplifier | -6/Data Miner | Free Adv. Datajack | -6/Data Miner | Free Linear Gravjet | -6/Data Miner | Free Nanoactuators | -6/Data Miner | Free Adv. Force Field | -6/Data Miner | Free Assault Drone Bay | -4/Zhirov | Free Exp. Heat Sink | -4/Zhirov | Free Exp. Optical Array | -4/Zhirov | Free Imp. Arc Thrower | -4/Zhirov | Free Robot Schematics ------------------ X-62 Marksman | -6/Data Miner | Free L-41 Fighter | -6/Data Miner | Free R-10 Processor | -6/Data Miner | Free S-27 Virus | -6/Data Miner | Free L-61 Swordsman | -6/Data Miner | Free A-27 Freighter | -6/Data Miner | Free M-30 Cleanser | -6/Data Miner | Free G-67 Veteran | -6/Data Miner | Free Fabricated ------------ Nothing Repaired ---------- Lgt. Treads | 23% | -8/Materials Imp. Propulsion Shielding | 15% | -6/Factory Imp. Sensor Array | 18% | -6/Factory Alien Tech Used ----------------- Integrated Reactor Sigix Broadsword Phase Redirector Core Membrane Integrated Dissipator Terrabomb Achievements -------------- None Challenges ------------ None Game ------ Seed HeatSpreadShearcannon Manual? 0 Play Time 03:19:07 Cumulative 484.6 hours Start 2025.08.21 @ 10:23:07 End 2025.08.24 @ 11:06:50 Sessions 6 Manual Loads 0 Difficulty Rogue Special Mode None Game No. 210 Rogue 210 Adventurer 0 Explorer 0 Win Type 0 Total 33 Types 14/2/6/2/5/1/0/2/0/1 Lore% 95 Gallery% 86 Achievement% 80 Wizard Run 0 Options --------- Layout 1 ASCII 0 Keyboard 0 Movement Numpad Keybinds 0 Fullscreen 1 Font 24/Smallcaps Map View 50x35 Zoom Use 0% Tactical HUD 1 Map Filters NONE Filters NONE Steam 1 RUN: e8dfc2f9-b28e-4a41-b834-6e3458349dc4